Workbook

Sheet Overview
A1: Distillery Reporting Template Overview /Instructions
A3: Expose Cells
B4: Enter "y" to highlight cells that require information to be entered in all forms. For printing purposes, the "y" must be cleared since figures in highlighted cells may not be legible when the forms are printed. Press the "Tab" key to move between input cells on each form. | G4: Please note that the email feature will only work if you have a locally installed email client such as Outlook.
A6: Monthly Distillery Reporting Forms
B8: All three report categories evident within each tab of this form, LCB 2413, LCB 2414, and LCB 2415, are required to be completed in full where applicable and the entire file is to be submitted to distilleryreporting@lcbo.com, in Excel format, no later than 20 days following the applicable month/quarter being reported upon. All submissions received by this mailbox are automatically forwarded, internally, to accounts.receivable@lcbo.com for invoicing, accounting, and receipt of payment purposes. Nil/Zero report categories, where the category may not be applicable to your organization, and nil/zero reports, in months/quarters where there may not be any sales transaction activity, are also required to be submitted. A copy of the submitted report must be retained by the Distillery for audit purposes. Within this authorized program and sales relationship, the Distillery is acting as an agent of the LCBO, directly carrying out sales to the customer while collecting fees on behalf of the LCBO and subsequently remitting them to the LCBO. A such, the sales based on the Selling Price seen within the Calculator tab would be considered the LCBO’s revenue, while there would be a deemed wholesale sale from the Distillery to the LCBO mainly based on the LCBO’s Landed Cost, which would be considered the Distillery’s revenue. *NEW* Questions regarding the completion/content of the report? Contact distilleryreporting@lcbo.com
A12: SUMMARY
B20: LCB 2413 (Distillery Container Deposit Statement)
B21: 1. When doing the monthly reporting, it is recommended that you complete forms with the most detailed information first,
B22: such as the Direct Delivery Sales Report. Sales information from this form will auto-populate the delivered direct to
B23: licensee sections of the LCB D10 and therefore, manual input is not required.
B24: 2. Select your distillery name from the dropdown list and enter the reporting month and year at the top of the statement.
B25: The distillery name and reporting month will automatically be populated in all of the other forms in the reporting template.
B27: LCB 2414 (Distillery Direct Delivery Sales Report)
B28: 1. Distilleries must complete columns preceding Basic Price per bottle (Column G). All columns to the right are calculated fields.
B29: 2. Please note that spirits cannot be sold the minimum retail price (MRP). If you enter a basic price below the acceptable MRP,
B30: you will get a "below MRP" notification in the Total Litres column.
B31: 3. In order for the Print form button to work correctly, you must enter consecutive product descriptions up to the last product.
B32: 4. Product # has now been replaced with Alcohol %. Please enter the alcohol % to ensure proper calculations. *NEW*
B33: 5. The Net HST [(Q) 13% HST on Sales - (R) 13% HST on COGS] is remitted to the LCBO *NEW*
B34: 6. (R) 13% HST on COGS represents the HST the LCBO is deemed to have paid the Distillery on the wholesale sale *NEW*
B36: LCB 2415 (Ontario Distillery Duty Free Sales Report)
B37: 1. Distilleries must complete columns preceding Costs per bottle (Column I). All columns to the right are calculated fields.
B38: 2. Please note that spirits sold to duty free operators must be by the case and not individual bottles.
B39: 3. In order for the Print form button to work correctly, you must enter consecutive product descriptions up to the last product.
B41: Calculator and Revenue Distribution
B42: 1. Products sold in Ontario are subject to uniform pricing as per the Liquor Control Act, which means, prices shall be the same
B43: at all government stores. For spirits, government stores include LCBO stores and distillery retail stores.
B44: 2. The calculator provides a pricing component breakdown of the retail price of spirits. The distillery must enter product attributes
B45: and based on this information, the calculator will produce the amounts for each pricing component.
B46: 3. The calculator also provides a revenue distribution comparison through the various sales channels.
B47: 4. The worksheet also contains all of the pricing components and the rates that are used to determine the retail price of spirits
B48: in Ontario.
B50: Minimum Retail Prices (MRP)
B51: 1. Products sold in Ontario are also subject to minimum pricing as per Ontario Regulation 750/21, which means that products
B52: cannot be retailed below the established MRP/floor price.
B53: 2. MRPs/floor prices are indexed annually based on the Ontario Consumer Price Index (CPI) to maintain social responsibility.
B54: 3. The MRP varies based on the product category and the size of the product.
B55: 4. Generally, products may not retail below the MRP/floor price, although, there are exceptions made for some products. Please
B56: refer to section 20 of Ontario Regulation 750/21 for more information on allowable exemptions.
B59: Payment Remittance A single payment is required to be made in the amount of the Total LCBO Payment evident within the Remittance Summary tab, no later than 20 days following the applicable month/quarter being reported upon. The Total LCBO Payment includes levies, mark-up, and applicable taxes on licensee sales (LCB 2414 tab), mark-up on Duty Free sales (LCB 2415 tab), and Container Deposits (LCB 2413 tab), all of which are collected on behalf of the LCBO. Payment is required to be made electronically, as per the LCBO Banking Instructions included within the welcome package, or by cheque.

Sheet Reporting Period (hidden)
B1: Format 1 | C1: Format 2 | D1: Frequency | F1: Calculator - DF Operator
B2: 2022-04-01 | C2: 2022-04-01 | D2: MONTHLY REPORTING STARTING | F2: Non-Pearson
B3: 2022-05-01 | C3: 2022-05-01 | D3: MONTHLY REPORTING STARTING | F3: Pearson
B4: 2022-06-01 | C4: 2022-06-01 | D4: MONTHLY REPORTING STARTING
B5: Q1 FY 2022-23 | C5: 2022-06-30 | D5: QUARTERLY REPORTING ENDING
B6: 2022-07-01 | C6: 2022-07-01 | D6: MONTHLY REPORTING STARTING
B7: 2022-08-01 | C7: 2022-08-01 | D7: MONTHLY REPORTING STARTING
B8: 2022-09-01 | C8: 2022-09-01 | D8: MONTHLY REPORTING STARTING
B9: Q2 FY 2022-23 | C9: 2022-09-30 | D9: QUARTERLY REPORTING ENDING
B10: 2022-10-01 | C10: 2022-10-01 | D10: MONTHLY REPORTING STARTING
B11: 2022-11-01 | C11: 2022-11-01 | D11: MONTHLY REPORTING STARTING
B12: 2022-12-01 | C12: 2022-12-01 | D12: MONTHLY REPORTING STARTING
B13: Q3 FY 2022-23 | C13: 2022-12-31 | D13: QUARTERLY REPORTING ENDING
B14: 2023-01-01 | C14: 2023-01-01 | D14: MONTHLY REPORTING STARTING
B15: 2023-02-01 | C15: 2023-02-01 | D15: MONTHLY REPORTING STARTING
B16: 2023-03-01 | C16: 2023-03-01 | D16: MONTHLY REPORTING STARTING
B17: Q4 FY 2022-23 | C17: 2023-03-31 | D17: QUARTERLY REPORTING ENDING

Sheet LCB 2413
A1: Distillery Container Deposit Statement
D2: =IF(Overview!$A$4="y",1,0) -> 0
B3: Distillery Name | F3: =IFERROR(VLOOKUP('LCB 2413'!$F$2,'Reporting Period'!$C$1:$D$17,2,0),"Select MONTH Starting or QUARTER Ending Date From List") -> Select MONTH Starting or QUARTER Ending Date From List
B4: Deposits Collected by Channel | D4: Containers | F4: Deposit Value
B5: Less than or equal to 100 ml ($0.00 deposit)
B6: Distillery Retail Store | F6: =IF(ISNUMBER(D6),D6*0,"") -> 
B7: Delivered Direct to Licensees | D7: =IF(ISNUMBER('LCB 2414'!$I$15),SUMPRODUCT(('LCB 2414'!$E$21:$E$54<=0.1)*('LCB 2414'!$D$21:$D$54<>"TH")*('LCB 2414'!$D$21:$D$54<>"BTG")*(('LCB 2414'!$F$21:$F$54)*('LCB 2414'!$G$21:$G$54)+('LCB 2414'!$F$21:$F$54)*('LCB 2414'!$G$21:$G$54<1))),"") -> 0 | F7: 0
B8: Tied-House sales | D8: =IF(ISNUMBER('LCB 2414'!$I$16),SUMPRODUCT(('LCB 2414'!$E$21:$E$54<=0.1)*('LCB 2414'!$D$21:$D$54="TH")*(('LCB 2414'!$F$21:$F$54)*('LCB 2414'!$G$21:$G$54)+('LCB 2414'!$F$21:$F$54)*('LCB 2414'!$G$21:$G$54<1))),"") -> 0 | F8: 0
B9: By the Glass | D9: =IF(ISNUMBER('LCB 2414'!$I$17),SUMPRODUCT(('LCB 2414'!$E$21:$E$54<=0.1)*('LCB 2414'!$D$21:$D$54="BTG")*(('LCB 2414'!$F$21:$F$54)*('LCB 2414'!$G$21:$G$54)+('LCB 2414'!$F$21:$F$54)*('LCB 2414'!$G$21:$G$54<1))),"") -> 0 | F9: 0
B10: Other (e.g. drs, promotional, tastings)
B11: Less: Refilled Containers
B12: Subtotal | D12: =IF((SUM(D6:D10)-D11)<>0,SUM(D6:D10)-D11,0) -> 0 | F12: =IF(ISNUMBER(D12),D12*0,0) -> 0
B13: Greater than 100 ml and less than or equal to 630 ml ($0.10 deposit)
B14: Distillery Retail Store | F14: =IF(D14<>0,ROUNDUP(D14,0)*0.1,"") -> 
B15: Delivered Direct to Licensees | D15: =IF(ISNUMBER('LCB 2414'!$I$15),SUMPRODUCT(('LCB 2414'!$E$21:$E$54>0.1)*('LCB 2414'!$E$21:$E$54<=0.63)*('LCB 2414'!$D$21:$D$54<>"TH")*('LCB 2414'!$D$21:$D$54<>"BTG")*(('LCB 2414'!$F$21:$F$54)*('LCB 2414'!$G$21:$G$54)+('LCB 2414'!$F$21:$F$54)*('LCB 2414'!$G$21:$G$54<1))),"") -> 0 | F15: =IF(ISNUMBER(D15),ROUNDUP(D15,0)*0.1,"") -> 0
B16: Tied-House sales | D16: =IF(ISNUMBER('LCB 2414'!$I$16),SUMPRODUCT(('LCB 2414'!$E$21:$E$54>0.1)*('LCB 2414'!$E$21:$E$54<=0.63)*('LCB 2414'!$D$21:$D$54="TH")*(('LCB 2414'!$F$21:$F$54)*('LCB 2414'!$G$21:$G$54)+('LCB 2414'!$F$21:$F$54)*('LCB 2414'!$G$21:$G$54<1))),"") -> 0 | F16: =IF(ISNUMBER(D16),ROUNDUP(D16,0)*0.1,"") -> 0
B17: By the Glass | D17: =IF(ISNUMBER('LCB 2414'!$I$16),SUMPRODUCT(('LCB 2414'!$E$21:$E$54>0.1)*('LCB 2414'!$E$21:$E$54<=0.63)*('LCB 2414'!$D$21:$D$54="BTG")*(('LCB 2414'!$F$21:$F$54)*('LCB 2414'!$G$21:$G$54)+('LCB 2414'!$F$21:$F$54)*('LCB 2414'!$G$21:$G$54<1))),"") -> 0 | F17: =IF(ISNUMBER(D17),ROUNDUP(D17,0)*0.1,"") -> 0
B18: Other (e.g. drs, promotional, tastings) | F18: =IF(ISNUMBER(D18),ROUNDUP(D18,0)*0.1,"") ->  | J18: `
B19: Less: Refilled Containers
B20: Subtotal | D20: =IF((SUM(D14:D18)-D19)<>0,SUM(D14:D18)-D19,0) -> 0 | F20: =IF(ISNUMBER(D20),D20*0.1,0) -> 0
B21: Greater than 630 ml ($0.20 deposit)
B22: Distillery Retail Store | F22: =IF(ISNUMBER(D22),ROUNDUP(D22,0)*0.2,"") -> 
B23: Delivered Direct to Licensees | D23: =IF(ISNUMBER('LCB 2414'!$I$15),SUMPRODUCT(('LCB 2414'!$E$21:$E$54>0.63)*('LCB 2414'!$D$21:$D$54<>"TH")*('LCB 2414'!$D$21:$D$54<>"BTG")*(('LCB 2414'!$F$21:$F$54)*('LCB 2414'!$G$21:$G$54)+('LCB 2414'!$F$21:$F$54)*('LCB 2414'!$G$21:$G$54<1))),"") -> 0 | F23: 0
B24: Tied-House sales | D24: =IF(ISNUMBER('LCB 2414'!$I$16),SUMPRODUCT(('LCB 2414'!$E$21:$E$54>0.63)*('LCB 2414'!$D$21:$D$54="TH")*(('LCB 2414'!$F$21:$F$54)*('LCB 2414'!$G$21:$G$54)+('LCB 2414'!$F$21:$F$54)*('LCB 2414'!$G$21:$G$54<1)))-SUMPRODUCT(('LCB 2414'!$E$21:$E$54>=18)*('LCB 2414'!$D$21:$D$54="TH")*('LCB 2414'!$C$21:$C$54="B")*(('LCB 2414'!$F$21:$F$54)*('LCB 2414'!$G$21:$G$54)+('LCB 2414'!$F$21:$F$54)*('LCB 2414'!$G$21:$G$54<1))),"") -> 0 | F24: 0
B25: By the Glass | D25: =IF(ISNUMBER('LCB 2414'!$I$16),SUMPRODUCT(('LCB 2414'!$E$21:$E$54>0.63)*('LCB 2414'!$D$21:$D$54="BTG")*(('LCB 2414'!$F$21:$F$54)*('LCB 2414'!$G$21:$G$54)+('LCB 2414'!$F$21:$F$54)*('LCB 2414'!$G$21:$G$54<1))),"") -> 0 | F25: 0
B26: Other (e.g. drs, promotional, tastings) | F26: =IF(ISNUMBER(D26),ROUNDUP(D26,0)*0.2,"") -> 
B27: Less: Refilled Containers
B28: Subtotal | D28: =IF((SUM(D22:D26)-D27)<>0,SUM(D22:D26)-D27,0) -> 0 | F28: =IF(ISNUMBER(D28),D28*0.2,0) -> 0
B29: Total Containers and Deposits | D29: =IF(SUM(D12,D20,D28)<>0,SUM(D12,D20,D28),0) -> 0 | F29: =IF(SUM(F12,F20,F28)<>0,SUM(F12,F20,F28),0) -> 0
B30: Note: Unless specified, container types include glass, aluminum cans, ceramic, Tetra Pak and PET.
D31: =IF(ISBLANK('LCB 2413'!$B$2),"",'LCB 2413'!$B$2) ->  | E31: =IF(ISBLANK('LCB 2413'!$B$2),"",'LCB 2413'!$B$2) -> 
B32: (Name & Title) | D32: (Name of Distillery)
B33: do hereby certify that the information set out in this report is true and correct to the best of my knowledge and belief
B35: (Date)
B41: LCB 2413 (V2.0) | F41: Page 1 of 1

Sheet LCB 2414
AC1: Pricing Components | AD1: Rate | AE1: Metric | AG1: Pricing Components | AH1: Rate | AI1: Metric
W2: LCB 2414 | AC2: =Calculator!J3 -> Whisky, Rum, Gin, Vodka, Liqueurs, Brandy | AD2: =Calculator!K3 -> 1.397 | AE2: ad valorem | AF2: 2 | AG2: =Calculator!J26 -> Excise | AH2: =Calculator!K26 -> 13.042 | AI2: =Calculator!L26 -> per LAA
A3: Distillery Direct Delivery Sales Report | W3: 05-21 | AC3: =Calculator!J4 -> One Pour / Pre-Mixed Cocktails | AD3: =Calculator!K4 -> 0.967 | AE3: ad valorem | AF3: 3 | AG3: =Calculator!J25 -> Cooler Excise | AH3: =Calculator!K25 -> 0.33 | AI3: per litre
F4: ='LCB 2413'!D2 -> 0 | AD4: =Calculator!K5 -> 0.685 | AE4: ad valorem | AF4: 4
A5: Summary of Spirit Sales to Licensees on behalf of the LCBO | AC5: =Calculator!J5 -> Spirit Coolers | AD5: =Calculator!K5 -> 0.685 | AE5: ad valorem | AF5: 5 | AG5: Cooler MRP | AH5: =Calculator!K21 -> 3.779 | AI5: per litre
AC6: =Calculator!J10 -> Volume Levy | AD6: =Calculator!K10 -> 0.38 | AE6: per litre | AF6: 6 | AG6: Cooler MRP | AH6: =Calculator!K22 -> 3.834 | AI6: per litre
A7: Ontario Distillery Name | B7: =IF(ISBLANK('LCB 2413'!B2:C2),"",'LCB 2413'!B2:C2) ->  | AC7: Cooler Bottle Levy | AD7: =Calculator!K11 -> 0.28 | AE7: per litre | AF7: 7 | AG7: Cooler MRP | AH7: =Calculator!K23 -> 3.935 | AI7: per litre
A8: HST Registration# | J8: ='LCB 2413'!D2 -> 0 | U8: =IF(ISBLANK('LCB 2413'!$F$2),"",'LCB 2413'!$F$3) ->  | V8: =IF(ISBLANK('LCB 2413'!$F$2),"",'LCB 2413'!$F$2) ->  | AC8: Environmental Fee | AD8: =Calculator!K12 -> 0.0893 | AE8: per bottle | AF8: 8 | AG8: Cooler MRP | AH8: =Calculator!K24 -> 73.065 | AI8: per litre
I9: Note: Print form button must be used if entries exceed one page (row 41). | V9: REPORTING PERIOD | AC9: Bottle Deposit <=630ml | AD9: =Calculator!K13 -> 0.1 | AE9: per bottle | AF9: 9
A10: Product Categories: | B10: Licensee Type: | AC10: Bottle Deposit >630ml | AD10: =Calculator!K14 -> 0.2 | AE10: per bottle | AF10: 10
A11: Whisky = W Liqueur = L | B11: Licensees = Blank or Any Value ≠ TH or BTG | AC11: =Calculator!J15 -> Direct Delivery Rebate | AD11: =Calculator!K15 -> 0.2 | AE11: ad valorem | AF11: 11
A12: Rum = R Vodka = V | B12: Tied-House = TH | AC12: Licensee Markup | AD12: =Calculator!K16 -> 0 | AE12: ad valorem | AF12: 12
A13: Gin = G Brandy = B | B13: By the Glass = BTG | AC13: =Calculator!J17 -> Licensee Discount | AD13: =Calculator!K17 -> 0.1 | AE13: ad valorem | AF13: 13
A14: One Pour / Pre-Mix Cocktails = P | B14: Grand Total | F14: =IF(SUM($F$21:$F$54)<>0,ROUND(SUM(F$21:F$54),0),0) -> 0 | I14: =IF(SUM($I$21:$I$54)<>0,ROUND(SUM(I$21:I$54),0),0) -> 0 | J14: =IF(SUM($F$21:$F$54)<>0,ROUND(SUM(J$21:J$54),2),0) -> 0 | L14: =IF(SUM($F$21:$F$54)<>0,ROUND(SUM(L$21:L$54),2),0) -> 0 | M14: 0 | N14: 0 | O14: 0 | P14: 0 | Q14: 0 | R14: 0 | S14: 0 | T14: 0 | U14: 0 | V14: 0 | W14: 0 | AA14: =ISNUMBER(Z14) -> FALSE | AC14: =Calculator!J18 -> HST (GST Portion) | AD14: =Calculator!K18 -> 0.05 | AE14: ad valorem | AF14: 14
A15: Coolers = C | B15: Licensees Subtotal | F15: =IF(SUM($F$21:$F$54)<>0,ROUND(F14-F16-F17,0),0) -> 0 | I15: =IF(SUM($F$21:$F$54)<>0,ROUND(I14-I16-I17,0),0) -> 0 | J15: =IF(SUM($F$21:$F$54)<>0,ROUND(J14-J16-J17,2),0) -> 0 | L15: =IF(SUM($F$21:$F$54)<>0,ROUND(L14-L16-L17,2),0) -> 0 | M15: =IF(SUM($F$21:$F$54)<>0,ROUND(M14-M16-M17,2),0) -> 0 | N15: 0 | O15: =IF(SUM($F$21:$F$54)<>0,ROUND(O14-O16,2),0) -> 0 | P15: =IF(SUM($F$21:$F$54)<>0,ROUND(P14-P16-P17,2),0) -> 0 | Q15: =IF(SUM($F$21:$F$54)<>0,ROUND(Q14-Q16-Q17,2),0) -> 0 | R15: 0 | S15: 0 | T15: 0 | U15: 0 | V15: 0 | W15: =IF(SUM($F$21:$F$54)<>0,ROUND(W14-W16-W17,2),0) -> 0 | AC15: =Calculator!J19 -> HST (PST Portion) | AD15: =Calculator!K19 -> 0.08 | AE15: ad valorem | AF15: 15
B16: Tied-House Subtotal | F16: =IF(SUM(F$21:F$54)<>0,SUMIF($D$21:$D$54,"TH",F$21:F$54),0) -> 0 | I16: =IF(SUM(I$21:I$54)<>0,SUMIF($D$21:$D$54,"TH",I$21:I$54),0) -> 0 | J16: =IF(SUM(J$21:J$54)<>0,SUMIF($D$21:$D$54,"TH",J$21:J$54),0) -> 0 | L16: =IF(SUM(L$21:L$54)<>0,SUMIF($D$21:$D$54,"TH",L$21:L$54),0) -> 0 | M16: 0 | N16: 0 | O16: 0 | P16: 0 | Q16: 0 | R16: 0 | S16: 0 | T16: 0 | U16: 0 | V16: 0 | W16: 0 | AC16: Enviro Surcharge | AD16: 0.04 | AE16: ad valorem | AF16: 16
B17: By the Glass Subtotal | F17: =IF(SUM($F$21:$F$54)<>0,ROUND(SUMIF($D$21:$D$54,"BTG",F$21:F$54),0),0) -> 0 | I17: =IF(SUM($I$21:$I$54)<>0,ROUND(SUMIF($D$21:$D$54,"BTG",I$21:I$54),0),0) -> 0 | J17: =IF(SUM($F$21:$F$54)<>0,ROUND(SUMIF($D$21:$D$54,"BTG",J$21:J$54),2),0) -> 0 | L17: =IF(SUM($F$21:$F$54)<>0,ROUND(SUMIF($D$21:$D$54,"BTG",L$21:L$54),2),0) -> 0 | M17: 0 | N17: 0 | O17: 0 | P17: 0 | Q17: 0 | R17: 0 | S17: 0 | T17: 0 | U17: 0 | W17: =IF(SUM($F$21:$F$54)<>0,ROUND(SUMIF($D$21:$D$54,"BTG",W$21:W$54),2),0) -> 0 | AC17: Rebate | AD17: 0.2 | AE17: ad valorem | AF17: 17
A18: (A) | B18: (B) | C18: (C) | D18: (D) | E18: (E) | F18: (F) | G18: (G) | H18: (H) | I18: (I) | J18: (J) | K18: (K) | L18: (L) | M18: (M) | N18: (N) | O18: (O) | P18: (P) | Q18: (Q) | R18: (R) | S18: (S) | T18: (T) | U18: (U) | V18: (V) | W18: (W)
A19: Product Description | B19: Product Alcohol % | C19: Product Category (See Above) | D19: Licensee Type | E19: Bottle Size (L) | F19: Units Sold | G19: # of Bottles per Unit (Req'd for Product Category 'C') | H19: Basic Price per Unit (Retail price less HST and Deposit) | I19: Total # of Bottles | J19: Total litres | K19: Landed Cost | L19: Cost of Goods Sold to LCBO | M19: Total Basic Sales | N19: 10% Discount | O19: 0% Licensee Markup | P19: Net Sales | Q19: 13% HST on Sales | R19: 13% HST on COGS | S19: Refundable Container Deposit | T19: Total Collected | U19: Rebate | V19: Supplier Portion (excluding container deposit) | W19: Total Remittance (excluding container deposit)
I20: (F or F x G) | J20: (E x I) | L20: (F x K) | M20: (F x H) | N20: (10% of M) | O20: (0% of (M-N)) | P20: (M-N) | Q20: (13% of P) | R20: (13% of L) | T20: (P+Q+S) | U20: (20% of M) | W20: (T-L-R-S-U) | Y20: MRP Check | Z20: NON BULK | AA20: BULK | AC20: Class A | AD20: Class B | AE20: Coolers/Pre-Mix | AF20: Enviro Fee | AG20: Price | AH20: MRP
I21: =IF(ISBLANK($C21),"",IF(OR($Y21="below MRP",$Y21="btl size error"),$Y21,IF(ISNONTEXT($C21),"",IF(OR($C21=" ",$Y21=""),"",IF(AND($C21="c",ISBLANK($G21)),"",IF(AND(OR($C21="C",$C21="w",$C21="r",$C21="g",$C21="l",$C21="v",$C21="b",$C21="p"),$F21<>0,$G21<>0),$F21*$G21,$F21)))))) ->  | J21: =IF(ISBLANK(C21),"",IF(ISNONTEXT(C21),"",IF(C21=" ","-",IF(OR(C21="W",C21="R",C21="G",C21="L",$C21="V",$C21="B",$C21="P",$C21="C"),E21*I21,"category?")))) ->  | K21: =IF(OR(C21="W",C21="R",C21="G",C21="L",$C21="V",$C21="B",$C21="P",$C21="C"),$Z21,IF(ISBLANK(C21),"","category?")) ->  | L21: =IF(OR(C21="W",C21="R",C21="G",C21="L",$C21="V",$C21="B",$C21="P",$C21="C"),F21*K21,IF(ISBLANK(C21),"","category?")) ->  | M21: =IF(ISNONTEXT($J21),H21*F21,"") ->  | N21: =IF(OR(C21="W",C21="R",C21="G",C21="L",$C21="V",$C21="B",$C21="P",$C21="C"),M21*$AD$13,IF(ISBLANK(C21),"","category?")) ->  | O21: =IF(OR(C21="W",C21="R",C21="G",C21="L",$C21="V",$C21="B",$C21="P",$C21="C"),$AD$12*($M21-$N21),IF(ISBLANK(C21),"","category?")) ->  | P21: =IF(OR(C21="W",C21="R",C21="G",C21="L",$C21="V",$C21="B",$C21="P",$C21="C"),M21-N21,IF(ISBLANK(C21),"","category?")) ->  | Q21: =IF(OR(C21="W",C21="R",C21="G",C21="L",$C21="V",$C21="B",$C21="P",$C21="C"),($AD$14+$AD$15)*($P21),IF(ISBLANK(C21),"","category?")) ->  | R21: =IF(OR(C21="W",C21="R",C21="G",C21="L",$C21="V",$C21="B",$C21="P",$C21="C"),($AD$14+$AD$15)*$L21,IF(ISBLANK(C21),"","category?")) ->  | S21: =IF(AND(E21>=16,C21<>"c",C21<>"d"),0,IF(AND(E21>=18,OR(C21="c",C21="d")),0,IF(AND(OR(C21="W",C21="R",C21="G",C21="L",$C21="V",$C21="B",$C21="P",$C21="C"),E21<=0.1),0,IF(AND(OR(C21="W",C21="R",C21="G",C21="L",$C21="V",$C21="B",$C21="P",$C21="C"),E21<=0.63),$AD$9*I21,IF(AND(OR(C21="W",C21="R",C21="G",C21="L",$C21="V",$C21="B",$C21="P",$C21="C"),E21>0.63),$AD$10*I21,IF(ISBLANK(C21),"","category?")))))) ->  | T21: =IF(OR(C21="W",C21="R",C21="G",C21="L",$C21="V",$C21="B",$C21="P",$C21="C"),P21+Q21+S21,IF(ISBLANK(C21),"","category?")) ->  | U21: =IF(OR(C21="W",C21="R",C21="G",C21="L",$C21="V",$C21="B",$C21="P",$C21="C"),M21*$AD$17,"") ->  | V21: =IF(OR(C21="W",C21="R",C21="G",C21="L",$C21="V",$C21="B",$C21="P",$C21="C"),T21-S21-W21,"") ->  | W21: =IF(OR(C21="W",C21="R",C21="G",C21="L",$C21="V",$C21="B",$C21="P",$C21="C"),$T21-$L21-$R21-$S21-$U21,IF(J21="below MRP",J21,"")) ->  | Y21: =IFERROR(IF(C21="l",AD21,IF(OR(C21="c",C21="P"),AE21,AC21)),"Okay") -> Okay | Z21: =IF(AND(ISNUMBER(H21),OR($C21="W",$C21="R",$C21="G",$C21="L",$C21="V",$C21="B")),(H21-($AD$6*$E21)-$AD$8)/(1+$AD$2),IF(AND(ISNUMBER(H21),$C21="P"),(H21-($AD$6*$E21)-$AD$8)/(1+$AD$3),IF(AND(ISNUMBER(H21),$C21="c"),(H21-$AD$7*$E21*$G21-$AD$8*$G21)/(1+$AD$5),"0"))) -> 0 | AC21: =IF(ROUND($H21*(1+$AD$14+$AD$15),2)+IF($E21>0.63,$AD$10,IF(AND($E21>=0.1,$E21<0.63),$AD$9,0))<CEILING(VLOOKUP($E21*1000,MRP!$A$3:$C$43,2)/VLOOKUP($E21*1000,MRP!$A$3:$C$43,1)*$E21*1000,0.05),"Below MRP","Okay") ->  | AD21: =IF($H21*(1+$AD$14+$AD$15)+IF($E21>0.63,$AD$10,IF(AND($E21>=0.1,$E21<0.63),$AD$9,0))<CEILING(VLOOKUP($E21*1000,MRP!$A$3:$C$43,3)/VLOOKUP($E21*1000,MRP!$A$3:$C$43,1)*$E21*1000,0.05),"Below MRP","Okay") ->  | AE21: =IF(AND(OR($C21="c",$C21="p"),$B21<4.1%,ROUND(H21*(1+$AD$14+$AD$15),2)<CEILING($AH$5*$E21*$G21+$AD$8*$G21*(1+$AD$14+$AD$15+$AD$16),0.05)),"Below MRP",IF(AND(OR($C21="c",$C21="p"),$B21>=4.1%,$B21<4.9%,ROUND(H21*(1+$AD$14+$AD$15),2)<CEILING($AH$6*$E21*$G21+$AD$8*$G21*(1+$AD$14+$AD$15+$AD$16),0.05)),"Below MRP",IF(AND(OR($C21="c",$C21="p"),$B21>=4.9%,$B21<5.6%,ROUND(H21*(1+$AD$14+$AD$15),2)<CEILING($AH$7*$E21*$G21+$AD$8*$G21*(1+$AD$14+$AD$15+$AD$16),0.05)),"Below MRP",IF(AND(OR($C21="c",$C21="p"),$B21>=5.6%,ROUND(H21*(1+$AD$14+$AD$15),2)<CEILING($AH$8*$E21*$B21*$G21+$AD$8*$G21*(1+$AD$14+$AD$15+$AD$16),0.05)),"Below MRP","Okay")))) -> Okay | AF21: =IF(E21>=16,0,$AD$8*$G21*(1+$AD$14+$AD$15+$AD$16)) -> 0 | AG21: =H21*(1+$AD$14+$AD$15) -> 0 | AH21: =IF(B21<4.1%,CEILING($AH$5*$E$21*$G$21+$AD$8*$G21*(1+$AD$14+$AD$15+$AD$16),0.05),IF(AND(B21>=4.1%,B21<4.9%),CEILING($AH$6*$E$21*$G$21+$AD$8*$G21*(1+$AD$14+$AD$15+$AD$16),0.05),IF(AND(B21>=4.9%,B21<5.6%),CEILING($AH$7*$E$21*$G$21+$AD$8*$G21*(1+$AD$14+$AD$15+$AD$16),0.05),IF(B21>=5.6%,CEILING($AH$8*$E$21*$B$21*$G$21+$AD$8*$G21*(1+$AD$14+$AD$15+$AD$16),0.05))))) -> 0
I22: =IF(ISBLANK($C22),"",IF(OR($Y22="below MRP",$Y22="btl size error"),$Y22,IF(ISNONTEXT($C22),"",IF(OR($C22=" ",$Y22=""),"",IF(AND($C22="c",ISBLANK($G22)),"",IF(AND(OR($C22="C",$C22="w",$C22="r",$C22="g",$C22="l",$C22="v",$C22="b",$C22="p"),$F22<>0,$G22<>0),$F22*$G22,$F22)))))) ->  | J22: =IF(ISBLANK(C22),"",IF(ISNONTEXT(C22),"",IF(C22=" ","-",IF(OR(C22="W",C22="R",C22="G",C22="L",$C22="V",$C22="B",$C22="P",$C22="C"),E22*I22,"?category")))) ->  | K22: =IF(OR(C22="W",C22="R",C22="G",C22="L",$C22="V",$C22="B",$C22="P",$C22="C"),$Z22,IF(ISBLANK(C22),"","category?")) ->  | L22: =IF(OR(C22="W",C22="R",C22="G",C22="L",$C22="V",$C22="B",$C22="P",$C22="C"),F22*K22,IF(ISBLANK(C22),"","category?")) ->  | M22: =IF(ISNONTEXT($J22),H22*F22,"") ->  | N22: =IF(OR(C22="W",C22="R",C22="G",C22="L",$C22="V",$C22="B",$C22="P",$C22="C"),M22*$AD$13,IF(ISBLANK(C22),"","category?")) ->  | O22: =IF(OR(C22="W",C22="R",C22="G",C22="L",$C22="V",$C22="B",$C22="P",$C22="C"),$AD$12*($M22-$N22),IF(ISBLANK(C22),"","category?")) ->  | P22: =IF(OR(C22="W",C22="R",C22="G",C22="L",$C22="V",$C22="B",$C22="P",$C22="C"),M22-N22,IF(ISBLANK(C22),"","category?")) ->  | Q22: =IF(OR(C22="W",C22="R",C22="G",C22="L",$C22="V",$C22="B",$C22="P",$C22="C"),($AD$14+$AD$15)*($P22),IF(ISBLANK(C22),"","category?")) ->  | R22: =IF(OR(C22="W",C22="R",C22="G",C22="L",$C22="V",$C22="B",$C22="P",$C22="C"),($AD$14+$AD$15)*$L22,IF(ISBLANK(C22),"","category?")) ->  | S22: =IF(AND(OR(C22="W",C22="R",C22="G",C22="L",$C22="V",$C22="B",$C22="P",$C22="C"),E22<=0.1),0,IF(AND(OR(C22="W",C22="R",C22="G",C22="L",$C22="V",$C22="B",$C22="P",$C22="C"),E22<=0.63),$AD$9*I22,IF(AND(OR(C22="W",C22="R",C22="G",C22="L",$C22="V",$C22="B",$C22="P",$C22="C"),E22>0.63),$AD$10*I22,IF(ISBLANK(C22),"","category?")))) ->  | T22: =IF(OR(C22="W",C22="R",C22="G",C22="L",$C22="V",$C22="B",$C22="P",$C22="C"),P22+Q22+S22,IF(ISBLANK(C22),"","category?")) ->  | U22: =IF(OR(C22="W",C22="R",C22="G",C22="L",$C22="V",$C22="B",$C22="P",$C22="C"),M22*$AD$17,"") ->  | V22: =IF(OR(C22="W",C22="R",C22="G",C22="L",$C22="V",$C22="B",$C22="P",$C22="C"),T22-S22-W22,"") ->  | W22: =IF(OR(C22="W",C22="R",C22="G",C22="L",$C22="V",$C22="B",$C22="P",$C22="C"),$T22-$L22-$R22-$S22-$U22,IF(J22="below MRP",J22,"")) ->  | Y22: =IFERROR(IF(C22="l",AD22,IF(OR(C22="c",C22="P"),AE22,AC22)),"Okay") -> Okay | Z22: =IF(AND(ISNUMBER(H22),OR($C22="W",$C22="R",$C22="G",$C22="L",$C22="V",$C22="B")),(H22-($AD$6*$E22)-$AD$8)/(1+$AD$2),IF(AND(ISNUMBER(H22),$C22="P"),(H22-($AD$6*$E22)-$AD$8)/(1+$AD$3),IF(AND(ISNUMBER(H22),$C22="c"),(H22-$AD$7*$E22*$G22-$AD$8*$G22)/(1+$AD$5),"0"))) -> 0 | AC22: =IF($H22*(1+$AD$14+$AD$15)+IF($E22>0.63,$AD$10,IF(AND($E22>=0.1,$E22<0.63),$AD$9,0))<CEILING(VLOOKUP($E22*1000,MRP!$A$3:$C$43,2)/VLOOKUP($E22*1000,MRP!$A$3:$C$43,1)*$E22*1000,0.05),"Below MRP","Okay") ->  | AD22: =IF($H22*(1+$AD$14+$AD$15)+IF($E22>0.63,$AD$10,IF(AND($E22>=0.1,$E22<0.63),$AD$9,0))<CEILING(VLOOKUP($E22*1000,MRP!$A$3:$C$43,3)/VLOOKUP($E22*1000,MRP!$A$3:$C$43,1)*$E22*1000,0.05),"Below MRP","Okay") ->  | AE22: =IF(AND(OR($C22="c",$C22="p"),$B22<4.1%,ROUND(H22*(1+$AD$14+$AD$15),2)<CEILING($AH$5*$E22*$G22+$AD$8*$G22*(1+$AD$14+$AD$15+$AD$16),0.05)),"Below MRP",IF(AND(OR($C22="c",$C22="p"),$B22>=4.1%,$B22<4.9%,ROUND(H22*(1+$AD$14+$AD$15),2)<CEILING($AH$6*$E22*$G22+$AD$8*$G22*(1+$AD$14+$AD$15+$AD$16),0.05)),"Below MRP",IF(AND(OR($C22="c",$C22="p"),$B22>=4.9%,$B22<5.6%,ROUND(H22*(1+$AD$14+$AD$15),2)<CEILING($AH$7*$E22*$G22+$AD$8*$G22*(1+$AD$14+$AD$15+$AD$16),0.05)),"Below MRP",IF(AND(OR($C22="c",$C22="p"),$B22>=5.6%,ROUND(H22*(1+$AD$14+$AD$15),2)<CEILING($AH$8*$E22*$B22*$G22+$AD$8*$G22*(1+$AD$14+$AD$15+$AD$16),0.05)),"Below MRP","Okay")))) -> Okay
Y23: Okay | Z23: 0 | AC23: =IF($H23*(1+$AD$14+$AD$15)+IF($E23>0.63,$AD$10,IF(AND($E23>=0.1,$E23<0.63),$AD$9,0))<CEILING(VLOOKUP($E23*1000,MRP!$A$3:$C$43,2)/VLOOKUP($E23*1000,MRP!$A$3:$C$43,1)*$E23*1000,0.05),"Below MRP","Okay") ->  | AD23: =IF($H23*(1+$AD$14+$AD$15)+IF($E23>0.63,$AD$10,IF(AND($E23>=0.1,$E23<0.63),$AD$9,0))<CEILING(VLOOKUP($E23*1000,MRP!$A$3:$C$43,3)/VLOOKUP($E23*1000,MRP!$A$3:$C$43,1)*$E23*1000,0.05),"Below MRP","Okay") ->  | AE23: Okay
Y24: Okay | Z24: 0 | AC24: =IF($H24*(1+$AD$14+$AD$15)+IF($E24>0.63,$AD$10,IF(AND($E24>=0.1,$E24<0.63),$AD$9,0))<CEILING(VLOOKUP($E24*1000,MRP!$A$3:$C$43,2)/VLOOKUP($E24*1000,MRP!$A$3:$C$43,1)*$E24*1000,0.05),"Below MRP","Okay") ->  | AD24: =IF($H24*(1+$AD$14+$AD$15)+IF($E24>0.63,$AD$10,IF(AND($E24>=0.1,$E24<0.63),$AD$9,0))<CEILING(VLOOKUP($E24*1000,MRP!$A$3:$C$43,3)/VLOOKUP($E24*1000,MRP!$A$3:$C$43,1)*$E24*1000,0.05),"Below MRP","Okay") ->  | AE24: Okay
Y25: Okay | Z25: 0 | AC25: =IF($H25*(1+$AD$14+$AD$15)+IF($E25>0.63,$AD$10,IF(AND($E25>=0.1,$E25<0.63),$AD$9,0))<CEILING(VLOOKUP($E25*1000,MRP!$A$3:$C$43,2)/VLOOKUP($E25*1000,MRP!$A$3:$C$43,1)*$E25*1000,0.05),"Below MRP","Okay") ->  | AD25: =IF($H25*(1+$AD$14+$AD$15)+IF($E25>0.63,$AD$10,IF(AND($E25>=0.1,$E25<0.63),$AD$9,0))<CEILING(VLOOKUP($E25*1000,MRP!$A$3:$C$43,3)/VLOOKUP($E25*1000,MRP!$A$3:$C$43,1)*$E25*1000,0.05),"Below MRP","Okay") ->  | AE25: Okay
Y26: Okay | Z26: 0 | AC26: =IF($H26*(1+$AD$14+$AD$15)+IF($E26>0.63,$AD$10,IF(AND($E26>=0.1,$E26<0.63),$AD$9,0))<CEILING(VLOOKUP($E26*1000,MRP!$A$3:$C$43,2)/VLOOKUP($E26*1000,MRP!$A$3:$C$43,1)*$E26*1000,0.05),"Below MRP","Okay") ->  | AD26: =IF($H26*(1+$AD$14+$AD$15)+IF($E26>0.63,$AD$10,IF(AND($E26>=0.1,$E26<0.63),$AD$9,0))<CEILING(VLOOKUP($E26*1000,MRP!$A$3:$C$43,3)/VLOOKUP($E26*1000,MRP!$A$3:$C$43,1)*$E26*1000,0.05),"Below MRP","Okay") ->  | AE26: Okay
Y27: Okay | Z27: 0 | AC27: =IF($H27*(1+$AD$14+$AD$15)+IF($E27>0.63,$AD$10,IF(AND($E27>=0.1,$E27<0.63),$AD$9,0))<CEILING(VLOOKUP($E27*1000,MRP!$A$3:$C$43,2)/VLOOKUP($E27*1000,MRP!$A$3:$C$43,1)*$E27*1000,0.05),"Below MRP","Okay") ->  | AD27: =IF($H27*(1+$AD$14+$AD$15)+IF($E27>0.63,$AD$10,IF(AND($E27>=0.1,$E27<0.63),$AD$9,0))<CEILING(VLOOKUP($E27*1000,MRP!$A$3:$C$43,3)/VLOOKUP($E27*1000,MRP!$A$3:$C$43,1)*$E27*1000,0.05),"Below MRP","Okay") ->  | AE27: Okay
Y28: Okay | Z28: 0 | AC28: =IF($H28*(1+$AD$14+$AD$15)+IF($E28>0.63,$AD$10,IF(AND($E28>=0.1,$E28<0.63),$AD$9,0))<CEILING(VLOOKUP($E28*1000,MRP!$A$3:$C$43,2)/VLOOKUP($E28*1000,MRP!$A$3:$C$43,1)*$E28*1000,0.05),"Below MRP","Okay") ->  | AD28: =IF($H28*(1+$AD$14+$AD$15)+IF($E28>0.63,$AD$10,IF(AND($E28>=0.1,$E28<0.63),$AD$9,0))<CEILING(VLOOKUP($E28*1000,MRP!$A$3:$C$43,3)/VLOOKUP($E28*1000,MRP!$A$3:$C$43,1)*$E28*1000,0.05),"Below MRP","Okay") ->  | AE28: Okay
Y29: Okay | Z29: 0 | AC29: =IF($H29*(1+$AD$14+$AD$15)+IF($E29>0.63,$AD$10,IF(AND($E29>=0.1,$E29<0.63),$AD$9,0))<CEILING(VLOOKUP($E29*1000,MRP!$A$3:$C$43,2)/VLOOKUP($E29*1000,MRP!$A$3:$C$43,1)*$E29*1000,0.05),"Below MRP","Okay") ->  | AD29: =IF($H29*(1+$AD$14+$AD$15)+IF($E29>0.63,$AD$10,IF(AND($E29>=0.1,$E29<0.63),$AD$9,0))<CEILING(VLOOKUP($E29*1000,MRP!$A$3:$C$43,3)/VLOOKUP($E29*1000,MRP!$A$3:$C$43,1)*$E29*1000,0.05),"Below MRP","Okay") ->  | AE29: Okay
Y30: Okay | Z30: 0 | AC30: =IF($H30*(1+$AD$14+$AD$15)+IF($E30>0.63,$AD$10,IF(AND($E30>=0.1,$E30<0.63),$AD$9,0))<CEILING(VLOOKUP($E30*1000,MRP!$A$3:$C$43,2)/VLOOKUP($E30*1000,MRP!$A$3:$C$43,1)*$E30*1000,0.05),"Below MRP","Okay") ->  | AD30: =IF($H30*(1+$AD$14+$AD$15)+IF($E30>0.63,$AD$10,IF(AND($E30>=0.1,$E30<0.63),$AD$9,0))<CEILING(VLOOKUP($E30*1000,MRP!$A$3:$C$43,3)/VLOOKUP($E30*1000,MRP!$A$3:$C$43,1)*$E30*1000,0.05),"Below MRP","Okay") ->  | AE30: Okay
Y31: Okay | Z31: 0 | AC31: =IF($H31*(1+$AD$14+$AD$15)+IF($E31>0.63,$AD$10,IF(AND($E31>=0.1,$E31<0.63),$AD$9,0))<CEILING(VLOOKUP($E31*1000,MRP!$A$3:$C$43,2)/VLOOKUP($E31*1000,MRP!$A$3:$C$43,1)*$E31*1000,0.05),"Below MRP","Okay") ->  | AD31: =IF($H31*(1+$AD$14+$AD$15)+IF($E31>0.63,$AD$10,IF(AND($E31>=0.1,$E31<0.63),$AD$9,0))<CEILING(VLOOKUP($E31*1000,MRP!$A$3:$C$43,3)/VLOOKUP($E31*1000,MRP!$A$3:$C$43,1)*$E31*1000,0.05),"Below MRP","Okay") ->  | AE31: Okay
Y32: Okay | Z32: 0 | AC32: =IF($H32*(1+$AD$14+$AD$15)+IF($E32>0.63,$AD$10,IF(AND($E32>=0.1,$E32<0.63),$AD$9,0))<CEILING(VLOOKUP($E32*1000,MRP!$A$3:$C$43,2)/VLOOKUP($E32*1000,MRP!$A$3:$C$43,1)*$E32*1000,0.05),"Below MRP","Okay") ->  | AD32: =IF($H32*(1+$AD$14+$AD$15)+IF($E32>0.63,$AD$10,IF(AND($E32>=0.1,$E32<0.63),$AD$9,0))<CEILING(VLOOKUP($E32*1000,MRP!$A$3:$C$43,3)/VLOOKUP($E32*1000,MRP!$A$3:$C$43,1)*$E32*1000,0.05),"Below MRP","Okay") ->  | AE32: Okay
Y33: Okay | Z33: 0 | AC33: =IF($H33*(1+$AD$14+$AD$15)+IF($E33>0.63,$AD$10,IF(AND($E33>=0.1,$E33<0.63),$AD$9,0))<CEILING(VLOOKUP($E33*1000,MRP!$A$3:$C$43,2)/VLOOKUP($E33*1000,MRP!$A$3:$C$43,1)*$E33*1000,0.05),"Below MRP","Okay") ->  | AD33: =IF($H33*(1+$AD$14+$AD$15)+IF($E33>0.63,$AD$10,IF(AND($E33>=0.1,$E33<0.63),$AD$9,0))<CEILING(VLOOKUP($E33*1000,MRP!$A$3:$C$43,3)/VLOOKUP($E33*1000,MRP!$A$3:$C$43,1)*$E33*1000,0.05),"Below MRP","Okay") ->  | AE33: Okay
Y34: Okay | Z34: 0 | AC34: =IF($H34*(1+$AD$14+$AD$15)+IF($E34>0.63,$AD$10,IF(AND($E34>=0.1,$E34<0.63),$AD$9,0))<CEILING(VLOOKUP($E34*1000,MRP!$A$3:$C$43,2)/VLOOKUP($E34*1000,MRP!$A$3:$C$43,1)*$E34*1000,0.05),"Below MRP","Okay") ->  | AD34: =IF($H34*(1+$AD$14+$AD$15)+IF($E34>0.63,$AD$10,IF(AND($E34>=0.1,$E34<0.63),$AD$9,0))<CEILING(VLOOKUP($E34*1000,MRP!$A$3:$C$43,3)/VLOOKUP($E34*1000,MRP!$A$3:$C$43,1)*$E34*1000,0.05),"Below MRP","Okay") ->  | AE34: Okay
Y35: Okay | Z35: 0 | AC35: =IF($H35*(1+$AD$14+$AD$15)+IF($E35>0.63,$AD$10,IF(AND($E35>=0.1,$E35<0.63),$AD$9,0))<CEILING(VLOOKUP($E35*1000,MRP!$A$3:$C$43,2)/VLOOKUP($E35*1000,MRP!$A$3:$C$43,1)*$E35*1000,0.05),"Below MRP","Okay") ->  | AD35: =IF($H35*(1+$AD$14+$AD$15)+IF($E35>0.63,$AD$10,IF(AND($E35>=0.1,$E35<0.63),$AD$9,0))<CEILING(VLOOKUP($E35*1000,MRP!$A$3:$C$43,3)/VLOOKUP($E35*1000,MRP!$A$3:$C$43,1)*$E35*1000,0.05),"Below MRP","Okay") ->  | AE35: Okay
Y36: Okay | Z36: 0 | AC36: =IF($H36*(1+$AD$14+$AD$15)+IF($E36>0.63,$AD$10,IF(AND($E36>=0.1,$E36<0.63),$AD$9,0))<CEILING(VLOOKUP($E36*1000,MRP!$A$3:$C$43,2)/VLOOKUP($E36*1000,MRP!$A$3:$C$43,1)*$E36*1000,0.05),"Below MRP","Okay") ->  | AD36: =IF($H36*(1+$AD$14+$AD$15)+IF($E36>0.63,$AD$10,IF(AND($E36>=0.1,$E36<0.63),$AD$9,0))<CEILING(VLOOKUP($E36*1000,MRP!$A$3:$C$43,3)/VLOOKUP($E36*1000,MRP!$A$3:$C$43,1)*$E36*1000,0.05),"Below MRP","Okay") ->  | AE36: Okay
Y37: Okay | Z37: 0 | AC37: =IF($H37*(1+$AD$14+$AD$15)+IF($E37>0.63,$AD$10,IF(AND($E37>=0.1,$E37<0.63),$AD$9,0))<CEILING(VLOOKUP($E37*1000,MRP!$A$3:$C$43,2)/VLOOKUP($E37*1000,MRP!$A$3:$C$43,1)*$E37*1000,0.05),"Below MRP","Okay") ->  | AD37: =IF($H37*(1+$AD$14+$AD$15)+IF($E37>0.63,$AD$10,IF(AND($E37>=0.1,$E37<0.63),$AD$9,0))<CEILING(VLOOKUP($E37*1000,MRP!$A$3:$C$43,3)/VLOOKUP($E37*1000,MRP!$A$3:$C$43,1)*$E37*1000,0.05),"Below MRP","Okay") ->  | AE37: Okay
Y38: Okay | Z38: 0 | AC38: =IF($H38*(1+$AD$14+$AD$15)+IF($E38>0.63,$AD$10,IF(AND($E38>=0.1,$E38<0.63),$AD$9,0))<CEILING(VLOOKUP($E38*1000,MRP!$A$3:$C$43,2)/VLOOKUP($E38*1000,MRP!$A$3:$C$43,1)*$E38*1000,0.05),"Below MRP","Okay") ->  | AD38: =IF($H38*(1+$AD$14+$AD$15)+IF($E38>0.63,$AD$10,IF(AND($E38>=0.1,$E38<0.63),$AD$9,0))<CEILING(VLOOKUP($E38*1000,MRP!$A$3:$C$43,3)/VLOOKUP($E38*1000,MRP!$A$3:$C$43,1)*$E38*1000,0.05),"Below MRP","Okay") ->  | AE38: Okay
Y39: Okay | Z39: 0 | AC39: =IF($H39*(1+$AD$14+$AD$15)+IF($E39>0.63,$AD$10,IF(AND($E39>=0.1,$E39<0.63),$AD$9,0))<CEILING(VLOOKUP($E39*1000,MRP!$A$3:$C$43,2)/VLOOKUP($E39*1000,MRP!$A$3:$C$43,1)*$E39*1000,0.05),"Below MRP","Okay") ->  | AD39: =IF($H39*(1+$AD$14+$AD$15)+IF($E39>0.63,$AD$10,IF(AND($E39>=0.1,$E39<0.63),$AD$9,0))<CEILING(VLOOKUP($E39*1000,MRP!$A$3:$C$43,3)/VLOOKUP($E39*1000,MRP!$A$3:$C$43,1)*$E39*1000,0.05),"Below MRP","Okay") ->  | AE39: Okay
Y40: Okay | Z40: 0 | AC40: =IF($H40*(1+$AD$14+$AD$15)+IF($E40>0.63,$AD$10,IF(AND($E40>=0.1,$E40<0.63),$AD$9,0))<CEILING(VLOOKUP($E40*1000,MRP!$A$3:$C$43,2)/VLOOKUP($E40*1000,MRP!$A$3:$C$43,1)*$E40*1000,0.05),"Below MRP","Okay") ->  | AD40: =IF($H40*(1+$AD$14+$AD$15)+IF($E40>0.63,$AD$10,IF(AND($E40>=0.1,$E40<0.63),$AD$9,0))<CEILING(VLOOKUP($E40*1000,MRP!$A$3:$C$43,3)/VLOOKUP($E40*1000,MRP!$A$3:$C$43,1)*$E40*1000,0.05),"Below MRP","Okay") ->  | AE40: Okay
Y41: Okay | Z41: 0 | AC41: =IF($H41*(1+$AD$14+$AD$15)+IF($E41>0.63,$AD$10,IF(AND($E41>=0.1,$E41<0.63),$AD$9,0))<CEILING(VLOOKUP($E41*1000,MRP!$A$3:$C$43,2)/VLOOKUP($E41*1000,MRP!$A$3:$C$43,1)*$E41*1000,0.05),"Below MRP","Okay") ->  | AD41: =IF($H41*(1+$AD$14+$AD$15)+IF($E41>0.63,$AD$10,IF(AND($E41>=0.1,$E41<0.63),$AD$9,0))<CEILING(VLOOKUP($E41*1000,MRP!$A$3:$C$43,3)/VLOOKUP($E41*1000,MRP!$A$3:$C$43,1)*$E41*1000,0.05),"Below MRP","Okay") ->  | AE41: Okay
Y42: Okay | Z42: 0 | AC42: =IF($H42*(1+$AD$14+$AD$15)+IF($E42>0.63,$AD$10,IF(AND($E42>=0.1,$E42<0.63),$AD$9,0))<CEILING(VLOOKUP($E42*1000,MRP!$A$3:$C$43,2)/VLOOKUP($E42*1000,MRP!$A$3:$C$43,1)*$E42*1000,0.05),"Below MRP","Okay") ->  | AD42: =IF($H42*(1+$AD$14+$AD$15)+IF($E42>0.63,$AD$10,IF(AND($E42>=0.1,$E42<0.63),$AD$9,0))<CEILING(VLOOKUP($E42*1000,MRP!$A$3:$C$43,3)/VLOOKUP($E42*1000,MRP!$A$3:$C$43,1)*$E42*1000,0.05),"Below MRP","Okay") ->  | AE42: Okay
Y43: Okay | Z43: 0 | AC43: =IF($H43*(1+$AD$14+$AD$15)+IF($E43>0.63,$AD$10,IF(AND($E43>=0.1,$E43<0.63),$AD$9,0))<CEILING(VLOOKUP($E43*1000,MRP!$A$3:$C$43,2)/VLOOKUP($E43*1000,MRP!$A$3:$C$43,1)*$E43*1000,0.05),"Below MRP","Okay") ->  | AD43: =IF($H43*(1+$AD$14+$AD$15)+IF($E43>0.63,$AD$10,IF(AND($E43>=0.1,$E43<0.63),$AD$9,0))<CEILING(VLOOKUP($E43*1000,MRP!$A$3:$C$43,3)/VLOOKUP($E43*1000,MRP!$A$3:$C$43,1)*$E43*1000,0.05),"Below MRP","Okay") ->  | AE43: Okay
Y44: Okay | Z44: 0 | AC44: =IF($H44*(1+$AD$14+$AD$15)+IF($E44>0.63,$AD$10,IF(AND($E44>=0.1,$E44<0.63),$AD$9,0))<CEILING(VLOOKUP($E44*1000,MRP!$A$3:$C$43,2)/VLOOKUP($E44*1000,MRP!$A$3:$C$43,1)*$E44*1000,0.05),"Below MRP","Okay") ->  | AD44: =IF($H44*(1+$AD$14+$AD$15)+IF($E44>0.63,$AD$10,IF(AND($E44>=0.1,$E44<0.63),$AD$9,0))<CEILING(VLOOKUP($E44*1000,MRP!$A$3:$C$43,3)/VLOOKUP($E44*1000,MRP!$A$3:$C$43,1)*$E44*1000,0.05),"Below MRP","Okay") ->  | AE44: Okay
Y45: Okay | Z45: 0 | AC45: =IF($H45*(1+$AD$14+$AD$15)+IF($E45>0.63,$AD$10,IF(AND($E45>=0.1,$E45<0.63),$AD$9,0))<CEILING(VLOOKUP($E45*1000,MRP!$A$3:$C$43,2)/VLOOKUP($E45*1000,MRP!$A$3:$C$43,1)*$E45*1000,0.05),"Below MRP","Okay") ->  | AD45: =IF($H45*(1+$AD$14+$AD$15)+IF($E45>0.63,$AD$10,IF(AND($E45>=0.1,$E45<0.63),$AD$9,0))<CEILING(VLOOKUP($E45*1000,MRP!$A$3:$C$43,3)/VLOOKUP($E45*1000,MRP!$A$3:$C$43,1)*$E45*1000,0.05),"Below MRP","Okay") ->  | AE45: Okay
Y46: Okay | Z46: 0 | AC46: =IF($H46*(1+$AD$14+$AD$15)+IF($E46>0.63,$AD$10,IF(AND($E46>=0.1,$E46<0.63),$AD$9,0))<CEILING(VLOOKUP($E46*1000,MRP!$A$3:$C$43,2)/VLOOKUP($E46*1000,MRP!$A$3:$C$43,1)*$E46*1000,0.05),"Below MRP","Okay") ->  | AD46: =IF($H46*(1+$AD$14+$AD$15)+IF($E46>0.63,$AD$10,IF(AND($E46>=0.1,$E46<0.63),$AD$9,0))<CEILING(VLOOKUP($E46*1000,MRP!$A$3:$C$43,3)/VLOOKUP($E46*1000,MRP!$A$3:$C$43,1)*$E46*1000,0.05),"Below MRP","Okay") ->  | AE46: Okay
Y47: Okay | Z47: 0 | AC47: =IF($H47*(1+$AD$14+$AD$15)+IF($E47>0.63,$AD$10,IF(AND($E47>=0.1,$E47<0.63),$AD$9,0))<CEILING(VLOOKUP($E47*1000,MRP!$A$3:$C$43,2)/VLOOKUP($E47*1000,MRP!$A$3:$C$43,1)*$E47*1000,0.05),"Below MRP","Okay") ->  | AD47: =IF($H47*(1+$AD$14+$AD$15)+IF($E47>0.63,$AD$10,IF(AND($E47>=0.1,$E47<0.63),$AD$9,0))<CEILING(VLOOKUP($E47*1000,MRP!$A$3:$C$43,3)/VLOOKUP($E47*1000,MRP!$A$3:$C$43,1)*$E47*1000,0.05),"Below MRP","Okay") ->  | AE47: Okay
Y48: Okay | Z48: 0 | AC48: =IF($H48*(1+$AD$14+$AD$15)+IF($E48>0.63,$AD$10,IF(AND($E48>=0.1,$E48<0.63),$AD$9,0))<CEILING(VLOOKUP($E48*1000,MRP!$A$3:$C$43,2)/VLOOKUP($E48*1000,MRP!$A$3:$C$43,1)*$E48*1000,0.05),"Below MRP","Okay") ->  | AD48: =IF($H48*(1+$AD$14+$AD$15)+IF($E48>0.63,$AD$10,IF(AND($E48>=0.1,$E48<0.63),$AD$9,0))<CEILING(VLOOKUP($E48*1000,MRP!$A$3:$C$43,3)/VLOOKUP($E48*1000,MRP!$A$3:$C$43,1)*$E48*1000,0.05),"Below MRP","Okay") ->  | AE48: Okay
Y49: Okay | Z49: 0 | AC49: =IF($H49*(1+$AD$14+$AD$15)+IF($E49>0.63,$AD$10,IF(AND($E49>=0.1,$E49<0.63),$AD$9,0))<CEILING(VLOOKUP($E49*1000,MRP!$A$3:$C$43,2)/VLOOKUP($E49*1000,MRP!$A$3:$C$43,1)*$E49*1000,0.05),"Below MRP","Okay") ->  | AD49: =IF($H49*(1+$AD$14+$AD$15)+IF($E49>0.63,$AD$10,IF(AND($E49>=0.1,$E49<0.63),$AD$9,0))<CEILING(VLOOKUP($E49*1000,MRP!$A$3:$C$43,3)/VLOOKUP($E49*1000,MRP!$A$3:$C$43,1)*$E49*1000,0.05),"Below MRP","Okay") ->  | AE49: Okay
J50: =IF(ISBLANK(C50),"",IF(ISNONTEXT(C50),"",IF(C50=" ","-",IF(OR(C50="W",C50="R",C50="G",C50="L",$C50="V",$C50="B",$C50="P",$C50="C"),E50*I50,"?category")))) ->  | K50: =IF(OR(C50="W",C50="R",C50="G",C50="L",$C50="V",$C50="B",$C50="P",$C50="C"),$Z50,IF(ISBLANK(C50),"","category?")) ->  | L50: =IF(OR(C50="W",C50="R",C50="G",C50="L",$C50="V",$C50="B",$C50="P",$C50="C"),F50*K50,IF(ISBLANK(C50),"","category?")) ->  | M50: =IF(ISNONTEXT($J50),H50*F50,"") ->  | N50: =IF(OR(C50="W",C50="R",C50="G",C50="L",$C50="V",$C50="B",$C50="P",$C50="C"),M50*$AD$13,IF(ISBLANK(C50),"","category?")) ->  | O50: =IF(OR(C50="W",C50="R",C50="G",C50="L",$C50="V",$C50="B",$C50="P",$C50="C"),$AD$12*($M50-$N50),IF(ISBLANK(C50),"","category?")) ->  | Q50: =IF(OR(C50="W",C50="R",C50="G",C50="L",$C50="V",$C50="B",$C50="P",$C50="C"),($AD$14+$AD$15)*($P50),IF(ISBLANK(C50),"","category?")) ->  | R50: =IF(OR(C50="W",C50="R",C50="G",C50="L",$C50="V",$C50="B",$C50="P",$C50="C"),($AD$14+$AD$15)*$L50,IF(ISBLANK(C50),"","category?")) ->  | S50: =IF(AND(OR(C50="W",C50="R",C50="G",C50="L",$C50="V",$C50="B",$C50="P",$C50="C"),E50<=0.1),0,IF(AND(OR(C50="W",C50="R",C50="G",C50="L",$C50="V",$C50="B",$C50="P",$C50="C"),E50<=0.63),$AD$9*I50,IF(AND(OR(C50="W",C50="R",C50="G",C50="L",$C50="V",$C50="B",$C50="P",$C50="C"),E50>0.63),$AD$10*I50,IF(ISBLANK(C50),"","category?")))) ->  | T50: =IF(OR(C50="W",C50="R",C50="G",C50="L",$C50="V",$C50="B",$C50="P",$C50="C"),P50+Q50+S50,IF(ISBLANK(C50),"","category?")) ->  | U50: =IF(OR(C50="W",C50="R",C50="G",C50="L",$C50="V",$C50="B",$C50="P",$C50="C"),M50*$AD$17,"") ->  | V50: =IF(OR(C50="W",C50="R",C50="G",C50="L",$C50="V",$C50="B",$C50="P",$C50="C"),T50-S50-W50,"") ->  | W50: =IF(OR(C50="W",C50="R",C50="G",C50="L",$C50="V",$C50="B",$C50="P",$C50="C"),$T50-$L50-$R50-$S50-$U50,IF(J50="below MRP",J50,"")) ->  | Y50: Okay | Z50: 0 | AC50: =IF($H50*(1+$AD$14+$AD$15)+IF($E50>0.63,$AD$10,IF(AND($E50>=0.1,$E50<0.63),$AD$9,0))<CEILING(VLOOKUP($E50*1000,MRP!$A$3:$C$43,2)/VLOOKUP($E50*1000,MRP!$A$3:$C$43,1)*$E50*1000,0.05),"Below MRP","Okay") ->  | AD50: =IF($H50*(1+$AD$14+$AD$15)+IF($E50>0.63,$AD$10,IF(AND($E50>=0.1,$E50<0.63),$AD$9,0))<CEILING(VLOOKUP($E50*1000,MRP!$A$3:$C$43,3)/VLOOKUP($E50*1000,MRP!$A$3:$C$43,1)*$E50*1000,0.05),"Below MRP","Okay") ->  | AE50: Okay
J51: =IF(ISBLANK(C51),"",IF(ISNONTEXT(C51),"",IF(C51=" ","-",IF(OR(C51="W",C51="R",C51="G",C51="L",$C51="V",$C51="B",$C51="P",$C51="C"),E51*I51,"?category")))) ->  | K51: =IF(OR(C51="W",C51="R",C51="G",C51="L",$C51="V",$C51="B",$C51="P",$C51="C"),$Z51,IF(ISBLANK(C51),"","category?")) ->  | L51: =IF(OR(C51="W",C51="R",C51="G",C51="L",$C51="V",$C51="B",$C51="P",$C51="C"),F51*K51,IF(ISBLANK(C51),"","category?")) ->  | M51: =IF(ISNONTEXT($J51),H51*F51,"") ->  | N51: =IF(OR(C51="W",C51="R",C51="G",C51="L",$C51="V",$C51="B",$C51="P",$C51="C"),M51*$AD$13,IF(ISBLANK(C51),"","category?")) ->  | O51: =IF(OR(C51="W",C51="R",C51="G",C51="L",$C51="V",$C51="B",$C51="P",$C51="C"),$AD$12*($M51-$N51),IF(ISBLANK(C51),"","category?")) ->  | Q51: =IF(OR(C51="W",C51="R",C51="G",C51="L",$C51="V",$C51="B",$C51="P",$C51="C"),($AD$14+$AD$15)*($P51),IF(ISBLANK(C51),"","category?")) ->  | R51: =IF(OR(C51="W",C51="R",C51="G",C51="L",$C51="V",$C51="B",$C51="P",$C51="C"),($AD$14+$AD$15)*$L51,IF(ISBLANK(C51),"","category?")) ->  | S51: =IF(AND(OR(C51="W",C51="R",C51="G",C51="L",$C51="V",$C51="B",$C51="P",$C51="C"),E51<=0.1),0,IF(AND(OR(C51="W",C51="R",C51="G",C51="L",$C51="V",$C51="B",$C51="P",$C51="C"),E51<=0.63),$AD$9*I51,IF(AND(OR(C51="W",C51="R",C51="G",C51="L",$C51="V",$C51="B",$C51="P",$C51="C"),E51>0.63),$AD$10*I51,IF(ISBLANK(C51),"","category?")))) ->  | T51: =IF(OR(C51="W",C51="R",C51="G",C51="L",$C51="V",$C51="B",$C51="P",$C51="C"),P51+Q51+S51,IF(ISBLANK(C51),"","category?")) ->  | U51: =IF(OR(C51="W",C51="R",C51="G",C51="L",$C51="V",$C51="B",$C51="P",$C51="C"),M51*$AD$17,"") ->  | V51: =IF(OR(C51="W",C51="R",C51="G",C51="L",$C51="V",$C51="B",$C51="P",$C51="C"),T51-S51-W51,"") ->  | W51: =IF(OR(C51="W",C51="R",C51="G",C51="L",$C51="V",$C51="B",$C51="P",$C51="C"),$T51-$L51-$R51-$S51-$U51,IF(J51="below MRP",J51,"")) ->  | Y51: Okay | Z51: 0 | AC51: =IF($H51*(1+$AD$14+$AD$15)+IF($E51>0.63,$AD$10,IF(AND($E51>=0.1,$E51<0.63),$AD$9,0))<CEILING(VLOOKUP($E51*1000,MRP!$A$3:$C$43,2)/VLOOKUP($E51*1000,MRP!$A$3:$C$43,1)*$E51*1000,0.05),"Below MRP","Okay") ->  | AD51: =IF($H51*(1+$AD$14+$AD$15)+IF($E51>0.63,$AD$10,IF(AND($E51>=0.1,$E51<0.63),$AD$9,0))<CEILING(VLOOKUP($E51*1000,MRP!$A$3:$C$43,3)/VLOOKUP($E51*1000,MRP!$A$3:$C$43,1)*$E51*1000,0.05),"Below MRP","Okay") ->  | AE51: Okay
J52: =IF(ISBLANK(C52),"",IF(ISNONTEXT(C52),"",IF(C52=" ","-",IF(OR(C52="W",C52="R",C52="G",C52="L",$C52="V",$C52="B",$C52="P",$C52="C"),E52*I52,"?category")))) ->  | K52: =IF(OR(C52="W",C52="R",C52="G",C52="L",$C52="V",$C52="B",$C52="P",$C52="C"),$Z52,IF(ISBLANK(C52),"","category?")) ->  | L52: =IF(OR(C52="W",C52="R",C52="G",C52="L",$C52="V",$C52="B",$C52="P",$C52="C"),F52*K52,IF(ISBLANK(C52),"","category?")) ->  | M52: =IF(ISNONTEXT($J52),H52*F52,"") ->  | N52: =IF(OR(C52="W",C52="R",C52="G",C52="L",$C52="V",$C52="B",$C52="P",$C52="C"),M52*$AD$13,IF(ISBLANK(C52),"","category?")) ->  | O52: =IF(OR(C52="W",C52="R",C52="G",C52="L",$C52="V",$C52="B",$C52="P",$C52="C"),$AD$12*($M52-$N52),IF(ISBLANK(C52),"","category?")) ->  | Q52: =IF(OR(C52="W",C52="R",C52="G",C52="L",$C52="V",$C52="B",$C52="P",$C52="C"),($AD$14+$AD$15)*($P52),IF(ISBLANK(C52),"","category?")) ->  | R52: =IF(OR(C52="W",C52="R",C52="G",C52="L",$C52="V",$C52="B",$C52="P",$C52="C"),($AD$14+$AD$15)*$L52,IF(ISBLANK(C52),"","category?")) ->  | S52: =IF(AND(OR(C52="W",C52="R",C52="G",C52="L",$C52="V",$C52="B",$C52="P",$C52="C"),E52<=0.1),0,IF(AND(OR(C52="W",C52="R",C52="G",C52="L",$C52="V",$C52="B",$C52="P",$C52="C"),E52<=0.63),$AD$9*I52,IF(AND(OR(C52="W",C52="R",C52="G",C52="L",$C52="V",$C52="B",$C52="P",$C52="C"),E52>0.63),$AD$10*I52,IF(ISBLANK(C52),"","category?")))) ->  | T52: =IF(OR(C52="W",C52="R",C52="G",C52="L",$C52="V",$C52="B",$C52="P",$C52="C"),P52+Q52+S52,IF(ISBLANK(C52),"","category?")) ->  | U52: =IF(OR(C52="W",C52="R",C52="G",C52="L",$C52="V",$C52="B",$C52="P",$C52="C"),M52*$AD$17,"") ->  | V52: =IF(OR(C52="W",C52="R",C52="G",C52="L",$C52="V",$C52="B",$C52="P",$C52="C"),T52-S52-W52,"") ->  | W52: =IF(OR(C52="W",C52="R",C52="G",C52="L",$C52="V",$C52="B",$C52="P",$C52="C"),$T52-$L52-$R52-$S52-$U52,IF(J52="below MRP",J52,"")) ->  | Y52: Okay | Z52: 0 | AC52: =IF($H52*(1+$AD$14+$AD$15)+IF($E52>0.63,$AD$10,IF(AND($E52>=0.1,$E52<0.63),$AD$9,0))<CEILING(VLOOKUP($E52*1000,MRP!$A$3:$C$43,2)/VLOOKUP($E52*1000,MRP!$A$3:$C$43,1)*$E52*1000,0.05),"Below MRP","Okay") ->  | AD52: =IF($H52*(1+$AD$14+$AD$15)+IF($E52>0.63,$AD$10,IF(AND($E52>=0.1,$E52<0.63),$AD$9,0))<CEILING(VLOOKUP($E52*1000,MRP!$A$3:$C$43,3)/VLOOKUP($E52*1000,MRP!$A$3:$C$43,1)*$E52*1000,0.05),"Below MRP","Okay") ->  | AE52: Okay
J53: =IF(ISBLANK(C53),"",IF(ISNONTEXT(C53),"",IF(C53=" ","-",IF(OR(C53="W",C53="R",C53="G",C53="L",$C53="V",$C53="B",$C53="P",$C53="C"),E53*I53,"?category")))) ->  | K53: =IF(OR(C53="W",C53="R",C53="G",C53="L",$C53="V",$C53="B",$C53="P",$C53="C"),$Z53,IF(ISBLANK(C53),"","category?")) ->  | L53: =IF(OR(C53="W",C53="R",C53="G",C53="L",$C53="V",$C53="B",$C53="P",$C53="C"),F53*K53,IF(ISBLANK(C53),"","category?")) ->  | M53: =IF(ISNONTEXT($J53),H53*F53,"") ->  | N53: =IF(OR(C53="W",C53="R",C53="G",C53="L",$C53="V",$C53="B",$C53="P",$C53="C"),M53*$AD$13,IF(ISBLANK(C53),"","category?")) ->  | O53: =IF(OR(C53="W",C53="R",C53="G",C53="L",$C53="V",$C53="B",$C53="P",$C53="C"),$AD$12*($M53-$N53),IF(ISBLANK(C53),"","category?")) ->  | P53: =IF(OR(C53="W",C53="R",C53="G",C53="L",$C53="V",$C53="B",$C53="P",$C53="C"),M53-N53,IF(ISBLANK(C53),"","category?")) ->  | Q53: =IF(OR(C53="W",C53="R",C53="G",C53="L",$C53="V",$C53="B",$C53="P",$C53="C"),($AD$14+$AD$15)*($P53),IF(ISBLANK(C53),"","category?")) ->  | R53: =IF(OR(C53="W",C53="R",C53="G",C53="L",$C53="V",$C53="B",$C53="P",$C53="C"),($AD$14+$AD$15)*$L53,IF(ISBLANK(C53),"","category?")) ->  | S53: =IF(AND(OR(C53="W",C53="R",C53="G",C53="L",$C53="V",$C53="B",$C53="P",$C53="C"),E53<=0.1),0,IF(AND(OR(C53="W",C53="R",C53="G",C53="L",$C53="V",$C53="B",$C53="P",$C53="C"),E53<=0.63),$AD$9*I53,IF(AND(OR(C53="W",C53="R",C53="G",C53="L",$C53="V",$C53="B",$C53="P",$C53="C"),E53>0.63),$AD$10*I53,IF(ISBLANK(C53),"","category?")))) ->  | T53: =IF(OR(C53="W",C53="R",C53="G",C53="L",$C53="V",$C53="B",$C53="P",$C53="C"),P53+Q53+S53,IF(ISBLANK(C53),"","category?")) ->  | U53: =IF(OR(C53="W",C53="R",C53="G",C53="L",$C53="V",$C53="B",$C53="P",$C53="C"),M53*$AD$17,"") ->  | V53: =IF(OR(C53="W",C53="R",C53="G",C53="L",$C53="V",$C53="B",$C53="P",$C53="C"),T53-S53-W53,"") ->  | W53: =IF(OR(C53="W",C53="R",C53="G",C53="L",$C53="V",$C53="B",$C53="P",$C53="C"),$T53-$L53-$R53-$S53-$U53,IF(J53="below MRP",J53,"")) ->  | Y53: =IFERROR(IF(C53="l",AD53,IF(OR(C53="c",C53="P"),AE53,AC53)),"Okay") -> Okay | Z53: =IF(AND(ISNUMBER(H53),OR($C53="W",$C53="R",$C53="G",$C53="L",$C53="V",$C53="B")),(H53-($AD$6*$E53)-$AD$8)/(1+$AD$2),IF(AND(ISNUMBER(H53),$C53="P"),(H53-($AD$6*$E53)-$AD$8)/(1+$AD$3),IF(AND(ISNUMBER(H53),$C53="c"),(H53-$AD$7*$E53*$G53-$AD$8*$G53)/(1+$AD$5),"0"))) -> 0 | AC53: =IF($H53*(1+$AD$14+$AD$15)+IF($E53>0.63,$AD$10,IF(AND($E53>=0.1,$E53<0.63),$AD$9,0))<CEILING(VLOOKUP($E53*1000,MRP!$A$3:$C$43,2)/VLOOKUP($E53*1000,MRP!$A$3:$C$43,1)*$E53*1000,0.05),"Below MRP","Okay") ->  | AD53: =IF($H53*(1+$AD$14+$AD$15)+IF($E53>0.63,$AD$10,IF(AND($E53>=0.1,$E53<0.63),$AD$9,0))<CEILING(VLOOKUP($E53*1000,MRP!$A$3:$C$43,3)/VLOOKUP($E53*1000,MRP!$A$3:$C$43,1)*$E53*1000,0.05),"Below MRP","Okay") ->  | AE53: Okay
Y54: Okay | Z54: 0 | AC54: =IF($H54*(1+$AD$14+$AD$15)+IF($E54>0.63,$AD$10,IF(AND($E54>=0.1,$E54<0.63),$AD$9,0))<CEILING(VLOOKUP($E54*1000,MRP!$A$3:$C$43,2)/VLOOKUP($E54*1000,MRP!$A$3:$C$43,1)*$E54*1000,0.05),"Below MRP","Okay") ->  | AD54: =IF($H54*(1+$AD$14+$AD$15)+IF($E54>0.63,$AD$10,IF(AND($E54>=0.1,$E54<0.63),$AD$9,0))<CEILING(VLOOKUP($E54*1000,MRP!$A$3:$C$43,3)/VLOOKUP($E54*1000,MRP!$A$3:$C$43,1)*$E54*1000,0.05),"Below MRP","Okay") ->  | AE54: Okay

Sheet LCB 2415
S3: LCB 2415
S4: ='LCB 2414'!W3 -> 05-21
A5: Distillery Duty Free Sales Report
A7: Summary of Ontario spirit sales made to Duty Free Operators on behalf of the LCBO
A9: Ontario Winery Name | B9: =IF(ISBLANK('LCB 2413'!B2:C2),"",'LCB 2413'!B2:C2) ->  | R9: =IF(ISBLANK('LCB 2413'!$F$2),"",'LCB 2413'!$F$3) ->  | S9: =IF(ISBLANK('LCB 2413'!$F$2),"",'LCB 2413'!$F$2) -> 
S10: REPORTING PERIOD
B11: ='LCB 2413'!D2 -> 0 | D11: Note: Print form button must be used if entries exceed one page (row 44).
A12: Product Categories:
A13: Whisky = W, Rum = R, Gin = G, Vodka = V, Liqueur = L,
A14: Brandy = B, One Pour/Pre-Mix Cocktails = P, Coolers = C
D15: Totals | G15: =J15 -> 0 | H15: =IF(SUM(H19:H52)<>0,SUM(H19:H52),0) -> 0 | J15: =IF(SUM(J19:J52)<>0,SUM(J19:J52),0) -> 0 | L15: =IF(SUM(L19:L52)<>0,ROUND(SUM(L19:L52),3),0) -> 0 | O15: =IF(SUM(O19:O52)<>0,ROUND(SUM(O19:O52),2),0) -> 0 | P15: =IF(SUM(P19:P52)<>0,SUM(P19:P52),0) -> 0 | Q15: =IF(SUM(Q19:Q52)<>0,ROUND(SUM(Q19:Q52),2),0) -> 0 | R15: =IF(SUM(R19:R52)<>0,ROUND(SUM(R19:R52),2),0) -> 0 | S15: =IF(SUM(S19:S52)<>0,ROUND(SUM(S19:S52),2),0) -> 0
A16: (A) | B16: (B) | C16: (C) | D16: (D) | E16: (E) | F16: (F) | G16: (G) | H16: (H) | I16: (I) | L16: (J) | O16: (K) | P16: (L) | Q16: (M) | R16: (N) | S16: (O)
A17: Product Description | B17: Product # | C17: Product Category | D17: Duty Free Operator (Req'd for 'Pearson') | E17: Bottle Size (L) | F17: Number of Bottles per Selling Unit | G17: Selling Units per Case | H17: Number of Cases Sold | I17: Cost per Selling Unit | J17: Total Bottles | K17: check NDRP | L17: Total litres | M17: Excise | N17: Unit Costs | O17: Cost of Goods Sold | P17: LCBO Mark-up | Q17: Total Collected | R17: Unassigned | S17: Total Remittance
L18: (E*F*G*H) | O18: (F*G*H*I) | Q18: (K+L) | R18: ($0.1567 per L) | S18: (L-N)
J19: =H19*G19*F19 -> 0 | K19: =IF(OR($C19="t",$C19="s",$C19="u"),+#REF!,IF($C19="l",+#REF!,IF($C19="f",+#REF!,IF($C19="m",+#REF!,IF(OR($C19="c",$C19="d"),+#REF!,"-"))))) -> - | L19: =IF(OR(C19="w",C19="r",C19="g",C19="v",C19="l",C19="b",C19="p",C19="c"),E19*F19*G19*H19,IF(ISBLANK(C19),"",IF(ISNONTEXT(C19),"",IF(C19=" ","","category?")))) ->  | O19: =IF(OR($C19="w",$C19="r",$C19="g",$C19="v",$C19="l",$C19="b",$C19="p",$C19="c"),I19*G19*H19,IF(ISBLANK(C19),"","category?")) ->  | P19: =IF(OR(AND(D19="Pearson",OR($C19="w",$C19="r",$C19="g",$C19="v",$C19="l",$C19="b",$C19="p")),AND(ISNUMBER(SEARCH("30%",A19)),OR($C19="w",$C19="r",$C19="g",$C19="v",$C19="l",$C19="b",$C19="p"))),O19*0.3,IF(OR($C19="w",$C19="r",$C19="g",$C19="v",$C19="l",$C19="b",$C19="p"),O19*0.2,IF($C19="c",O19*0.15,IF(ISBLANK(C19),"","category?")))) ->  | Q19: =IF(OR(C19="c",C19="d"),O19+P19,IF(ISNONTEXT($P19),P19+O19,IF(ISBLANK(C19),"","category?"))) ->  | R19: =IF(OR($C19="w",$C19="r",$C19="g",$C19="v",$C19="l",$C19="b",$C19="p",$C19="c"),L19*0.1567,IF(ISBLANK(C19),"","category?")) ->  | S19: =IF(OR($C19="w",$C19="r",$C19="g",$C19="v",$C19="l",$C19="b",$C19="p",$C19="c"),P19-R19,IF(ISBLANK(C19),"","category?")) -> 
J20: 0 | K20: =IF(OR($C20="t",$C20="s",$C20="u"),+#REF!,IF($C20="l",+#REF!,IF($C20="f",+#REF!,IF($C20="m",+#REF!,IF(OR($C20="c",$C20="d"),+#REF!,"-"))))) -> - | L20: =IF(OR(C20="w",C20="r",C20="g",C20="v",C20="l",C20="b",C20="p",C20="c"),E20*F20*G20*H20,IF(ISBLANK(C20),"",IF(ISNONTEXT(C20),"",IF(C20=" ","","category?")))) ->  | O20: =IF(OR($C20="w",$C20="r",$C20="g",$C20="v",$C20="l",$C20="b",$C20="p",$C20="c"),I20*G20*H20,IF(ISBLANK(C20),"","category?")) ->  | P20: =IF(OR(AND(D20="Pearson",OR($C20="w",$C20="r",$C20="g",$C20="v",$C20="l",$C20="b",$C20="p")),AND(ISNUMBER(SEARCH("30%",A20)),OR($C20="w",$C20="r",$C20="g",$C20="v",$C20="l",$C20="b",$C20="p"))),O20*0.3,IF(OR($C20="w",$C20="r",$C20="g",$C20="v",$C20="l",$C20="b",$C20="p"),O20*0.2,IF($C20="c",O20*0.15,IF(ISBLANK(C20),"","category?")))) ->  | Q20: =IF(OR(C20="c",C20="d"),O20+P20,IF(ISNONTEXT($P20),P20+O20,IF(ISBLANK(C20),"","category?"))) ->  | R20: =IF(OR($C20="w",$C20="r",$C20="g",$C20="v",$C20="l",$C20="b",$C20="p",$C20="c"),L20*0.1567,IF(ISBLANK(C20),"","category?")) ->  | S20: =IF(OR($C20="w",$C20="r",$C20="g",$C20="v",$C20="l",$C20="b",$C20="p",$C20="c"),P20-R20,IF(ISBLANK(C20),"","category?")) -> 
J21: 0 | K21: =IF(OR($C21="t",$C21="s",$C21="u"),+#REF!,IF($C21="l",+#REF!,IF($C21="f",+#REF!,IF($C21="m",+#REF!,IF(OR($C21="c",$C21="d"),+#REF!,"-"))))) -> -
J22: 0 | K22: =IF(OR($C22="t",$C22="s",$C22="u"),+#REF!,IF($C22="l",+#REF!,IF($C22="f",+#REF!,IF($C22="m",+#REF!,IF(OR($C22="c",$C22="d"),+#REF!,"-"))))) -> -
J23: 0 | K23: =IF(OR($C23="t",$C23="s",$C23="u"),+#REF!,IF($C23="l",+#REF!,IF($C23="f",+#REF!,IF($C23="m",+#REF!,IF(OR($C23="c",$C23="d"),+#REF!,"-"))))) -> -
J24: 0 | K24: =IF(OR($C24="t",$C24="s",$C24="u"),+#REF!,IF($C24="l",+#REF!,IF($C24="f",+#REF!,IF($C24="m",+#REF!,IF(OR($C24="c",$C24="d"),+#REF!,"-"))))) -> -
J25: 0 | K25: =IF(OR($C25="t",$C25="s",$C25="u"),+#REF!,IF($C25="l",+#REF!,IF($C25="f",+#REF!,IF($C25="m",+#REF!,IF(OR($C25="c",$C25="d"),+#REF!,"-"))))) -> -
J26: 0 | K26: =IF(OR($C26="t",$C26="s",$C26="u"),+#REF!,IF($C26="l",+#REF!,IF($C26="f",+#REF!,IF($C26="m",+#REF!,IF(OR($C26="c",$C26="d"),+#REF!,"-"))))) -> -
J27: 0 | K27: =IF(OR($C27="t",$C27="s",$C27="u"),+#REF!,IF($C27="l",+#REF!,IF($C27="f",+#REF!,IF($C27="m",+#REF!,IF(OR($C27="c",$C27="d"),+#REF!,"-"))))) -> -
J28: 0 | K28: =IF(OR($C28="t",$C28="s",$C28="u"),+#REF!,IF($C28="l",+#REF!,IF($C28="f",+#REF!,IF($C28="m",+#REF!,IF(OR($C28="c",$C28="d"),+#REF!,"-"))))) -> -
J29: 0 | K29: =IF(OR($C29="t",$C29="s",$C29="u"),+#REF!,IF($C29="l",+#REF!,IF($C29="f",+#REF!,IF($C29="m",+#REF!,IF(OR($C29="c",$C29="d"),+#REF!,"-"))))) -> -
J30: 0 | K30: =IF(OR($C30="t",$C30="s",$C30="u"),+#REF!,IF($C30="l",+#REF!,IF($C30="f",+#REF!,IF($C30="m",+#REF!,IF(OR($C30="c",$C30="d"),+#REF!,"-"))))) -> -
J31: 0 | K31: =IF(OR($C31="t",$C31="s",$C31="u"),+#REF!,IF($C31="l",+#REF!,IF($C31="f",+#REF!,IF($C31="m",+#REF!,IF(OR($C31="c",$C31="d"),+#REF!,"-"))))) -> -
J32: 0 | K32: =IF(OR($C32="t",$C32="s",$C32="u"),+#REF!,IF($C32="l",+#REF!,IF($C32="f",+#REF!,IF($C32="m",+#REF!,IF(OR($C32="c",$C32="d"),+#REF!,"-"))))) -> -
J33: 0 | K33: =IF(OR($C33="t",$C33="s",$C33="u"),+#REF!,IF($C33="l",+#REF!,IF($C33="f",+#REF!,IF($C33="m",+#REF!,IF(OR($C33="c",$C33="d"),+#REF!,"-"))))) -> -
J34: 0 | K34: =IF(OR($C34="t",$C34="s",$C34="u"),+#REF!,IF($C34="l",+#REF!,IF($C34="f",+#REF!,IF($C34="m",+#REF!,IF(OR($C34="c",$C34="d"),+#REF!,"-"))))) -> -
J35: 0 | K35: =IF(OR($C35="t",$C35="s",$C35="u"),+#REF!,IF($C35="l",+#REF!,IF($C35="f",+#REF!,IF($C35="m",+#REF!,IF(OR($C35="c",$C35="d"),+#REF!,"-"))))) -> -
J36: 0 | K36: =IF(OR($C36="t",$C36="s",$C36="u"),+#REF!,IF($C36="l",+#REF!,IF($C36="f",+#REF!,IF($C36="m",+#REF!,IF(OR($C36="c",$C36="d"),+#REF!,"-"))))) -> -
J37: 0 | K37: =IF(OR($C37="t",$C37="s",$C37="u"),+#REF!,IF($C37="l",+#REF!,IF($C37="f",+#REF!,IF($C37="m",+#REF!,IF(OR($C37="c",$C37="d"),+#REF!,"-"))))) -> -
J38: 0 | K38: =IF(OR($C38="t",$C38="s",$C38="u"),+#REF!,IF($C38="l",+#REF!,IF($C38="f",+#REF!,IF($C38="m",+#REF!,IF(OR($C38="c",$C38="d"),+#REF!,"-"))))) -> -
J39: 0 | K39: =IF(OR($C39="t",$C39="s",$C39="u"),+#REF!,IF($C39="l",+#REF!,IF($C39="f",+#REF!,IF($C39="m",+#REF!,IF(OR($C39="c",$C39="d"),+#REF!,"-"))))) -> -
J40: 0 | K40: =IF(OR($C40="t",$C40="s",$C40="u"),+#REF!,IF($C40="l",+#REF!,IF($C40="f",+#REF!,IF($C40="m",+#REF!,IF(OR($C40="c",$C40="d"),+#REF!,"-"))))) -> -
J41: 0 | K41: =IF(OR($C41="t",$C41="s",$C41="u"),+#REF!,IF($C41="l",+#REF!,IF($C41="f",+#REF!,IF($C41="m",+#REF!,IF(OR($C41="c",$C41="d"),+#REF!,"-"))))) -> -
J42: 0 | K42: =IF(OR($C42="t",$C42="s",$C42="u"),+#REF!,IF($C42="l",+#REF!,IF($C42="f",+#REF!,IF($C42="m",+#REF!,IF(OR($C42="c",$C42="d"),+#REF!,"-"))))) -> -
J43: 0 | K43: =IF(OR($C43="t",$C43="s",$C43="u"),+#REF!,IF($C43="l",+#REF!,IF($C43="f",+#REF!,IF($C43="m",+#REF!,IF(OR($C43="c",$C43="d"),+#REF!,"-"))))) -> -
J44: 0 | K44: =IF(OR($C44="t",$C44="s",$C44="u"),+#REF!,IF($C44="l",+#REF!,IF($C44="f",+#REF!,IF($C44="m",+#REF!,IF(OR($C44="c",$C44="d"),+#REF!,"-"))))) -> -
J45: 0 | K45: =IF(OR($C45="t",$C45="s",$C45="u"),+#REF!,IF($C45="l",+#REF!,IF($C45="f",+#REF!,IF($C45="m",+#REF!,IF(OR($C45="c",$C45="d"),+#REF!,"-"))))) -> -
J46: =H46*G46*F46 -> 0 | K46: =IF(OR($C46="t",$C46="s",$C46="u"),+#REF!,IF($C46="l",+#REF!,IF($C46="f",+#REF!,IF($C46="m",+#REF!,IF(OR($C46="c",$C46="d"),+#REF!,"-"))))) -> -
J47: 0 | K47: =IF(OR($C47="t",$C47="s",$C47="u"),+#REF!,IF($C47="l",+#REF!,IF($C47="f",+#REF!,IF($C47="m",+#REF!,IF(OR($C47="c",$C47="d"),+#REF!,"-"))))) -> -
J48: 0 | K48: =IF(OR($C48="t",$C48="s",$C48="u"),+#REF!,IF($C48="l",+#REF!,IF($C48="f",+#REF!,IF($C48="m",+#REF!,IF(OR($C48="c",$C48="d"),+#REF!,"-"))))) -> -
J49: 0 | K49: =IF(OR($C49="t",$C49="s",$C49="u"),+#REF!,IF($C49="l",+#REF!,IF($C49="f",+#REF!,IF($C49="m",+#REF!,IF(OR($C49="c",$C49="d"),+#REF!,"-"))))) -> -
J50: 0 | K50: =IF(OR($C50="t",$C50="s",$C50="u"),+#REF!,IF($C50="l",+#REF!,IF($C50="f",+#REF!,IF($C50="m",+#REF!,IF(OR($C50="c",$C50="d"),+#REF!,"-"))))) -> -
J51: 0 | K51: =IF(OR($C51="t",$C51="s",$C51="u"),+#REF!,IF($C51="l",+#REF!,IF($C51="f",+#REF!,IF($C51="m",+#REF!,IF(OR($C51="c",$C51="d"),+#REF!,"-"))))) -> -
J52: 0 | K52: =IF(OR($C52="t",$C52="s",$C52="u"),+#REF!,IF($C52="l",+#REF!,IF($C52="f",+#REF!,IF($C52="m",+#REF!,IF(OR($C52="c",$C52="d"),+#REF!,"-"))))) -> -

Sheet Remittance Summary
A1: Remittance Summary
A4: =IF(ISBLANK('LCB 2413'!B2),"",'LCB 2413'!B2) ->  | C4: =IF(ISBLANK('LCB 2413'!F2),"",'LCB 2413'!F2) -> 
A5: Distillery Name | C5: =IF(ISBLANK('LCB 2413'!$F$2),"REPORTING PERIOD",'LCB 2413'!$F$3) -> REPORTING PERIOD
A7: LCBO Remittances: | C7: $ Amount
A8: Direct Delivery Sales Report (LCB 2414) | C8: ='LCB 2414'!W14 -> 0
A9: Duty Free Sales Report (LCB 2415) | C9: ='LCB 2415'!S15 -> 0
A10: Container Deposit Statement (LCB 2413) | C10: ='LCB 2413'!F29 -> 0
A11: Total LCBO Payment | C11: =SUM(C8:C10) -> 0
A13: HST on Direct Delivery to Licensee Sales: | C13: $ Amount
A14: HST on LCBO's Sales administered by Distillery (LCB 2414) | C14: ='LCB 2414'!$Q$14 -> 0
A15: HST Collected on Distillery's Deemed Wholesale Sale to LCBO (LCB 2414) | C15: ='LCB 2414'!$R$14 -> 0
A16: Total HST Remittance (included within Total LCBO Payment above) | C16: =C14-C15 -> 0
A19: MAILING ADDRESS & CONTACT INFORMATION:
A21: NOTE: Hardcopies of report are NOT to be submitted along with payment or at all
A22: ONLY electronic copies should be submitted to distilleryreporting@lcbo.com
A24: LCBO (New Address effective Nov. 1, 2021)
A25: LCBO Financial Services, Dept. 0884
A26: 100 Queens Quay East, 9th floor
A27: Toronto, ON M5E 0C7
A29: Contact: accounts.receivables@lcbo.com

Sheet Calculator
A2: Whisky, Rum, Gin, Vodka, Brandy = Blank; Liqueur = L ; Cooler = C; One Pour/Pre-Mix Cocktails = P | J2: Pricing Components | K2: Rate | L2: Metric
J3: Whisky, Rum, Gin, Vodka, Liqueurs, Brandy | K3: 1.397 | L3: ad valorem
J4: One Pour / Pre-Mixed Cocktails | K4: 0.967 | L4: ad valorem
A5: Bottle Size (L) | B5: 0.75 | J5: Spirit Coolers | K5: 0.685 | L5: ad valorem
A6: Alcohol Content % | B6: 0.4 | J6: Pearson Duty Free Spirits (Excluding coolers) | K6: 0.3 | L6: ad valorem
A7: Bottles per Selling Unit | B7: 1 | J7: Non-Pearson Duty Free Spirits (Excluding coolers) | K7: 0.2 | L7: ad valorem
A8: Retail selling price (including deposit) | B8: 28.2 | J8: Duty Free Spirit Coolers | K8: 0.15 | L8: ad valorem
A9: Minimum Retail Price Check | B9: =IF(AND(B2="L",$B$13<CEILING(VLOOKUP(B5*1000,MRP!$A$3:$C$43,3)/VLOOKUP(B5*1000,MRP!$A$3:$C$43,1)*B5*1000,0.05)),"Below MRP",IF(AND(ISBLANK(B2),B13<CEILING(VLOOKUP(B5*1000,MRP!$A$3:$C$43,2)/VLOOKUP(B5*1000,MRP!$A$3:$C$43,1)*B5*1000,0.05)),"Below MRP",IF(OR(B2="c",B2="p"),D9,"Okay"))) -> Below MRP | D9: =IF(AND(OR($B$2="c",$B$2="p"),$B$6<4.1%,D13-D14<CEILING($K$21*$B$5*$B$7+$B$7*$K$12*(1+$K$18+$K$19+$K$20),0.05)),"Below MRP",IF(AND(OR($B$2="c",$B$2="p"),$B$6>=4.1%,$B$6<4.9%,D13-D14<CEILING($K$22*$B$5*$B$7+$B$7*$K$12*(1+$K$18+$K$19+$K$20),0.05)),"Below MRP",IF(AND(OR($B$2="c",$B$2="p"),$B$6>=4.9%,$B$6<5.6%,D13-D14<CEILING($K$23*$B$5*$B$7+$B$7*$K$12*(1+$K$18+$K$19+$K$20),0.05)),"Below MRP",IF(AND(OR($B$2="c",$B$2="p"),$B$6>=5.6%,D13-D14<CEILING($K$24*$B$5*$B$6*$B$7+$B$7*$K$12*(1+$K$18+$K$19+$K$20),0.05)),"Below MRP","Okay")))) -> Okay | J9: Spirits Basic Tax | K9: 0.615 | L9: ad valorem
A10: Duty Free Operator | B10: Non-Pearson | J10: Volume Levy | K10: 0.38 | L10: per litre
A11: =IF(Overview!$A$4="y",1,0) -> 0 | B11: LCBO | D11: Distillery Retail Store (DRS) | F11: Direct Delivery to Licensee | H11: Direct Delivery to Duty Free | J11: Cooler Volume Levy | K11: 0.28 | L11: per litre
J12: Environmental Fee | K12: 0.0893 | L12: per container
A13: Selling Price | B13: =B8 -> 28.2 | D13: =B13 -> 28.2 | F13: =F16+F15+F14 -> 25.4 | H13: =H16+H15+H14 -> 7.522382409 | J13: Container Deposit >100 mL and <=630 mL | K13: 0.1 | L13: per container
A14: Container Deposit | B14: =IF(AND(B5>=18,OR(B2="c",B2="d")),0,IF(B5<=0.1,0,IF(B5>0.63,$B$7*$K$14,$B$7*$K$13))) -> 0.2 | D14: =B14 -> 0.2 | F14: =B14 -> 0.2 | H14: 0 | J14: Container Deposit >630 mL | K14: 0.2 | L14: per container
A15: H.S.T. | B15: =(B$13-B14)/(1+$K$18+$K$19)*($K$18+$K$19) -> 3.221238938 | D15: =ROUND(B15,2) -> 3.22 | F15: =F16*($K$18+$K$19) -> 2.899115044 | H15: 0 | J15: Direct Delivery Rebate | K15: 0.2 | L15: ad valorem
A16: Net Licensee Price | F16: =F19-F18 -> 22.30088496 | H16: =H19-H18 -> 7.522382409 | J16: Licensee Markup | K16: 0 | L16: ad valorem
J17: Licensee Discount | K17: 0.1 | L17: ad valorem
A18: 10% Discount | F18: =F19*$K$17 -> 2.477876106 | H18: 0 | J18: HST (GST Portion) | K18: 0.05 | L18: ad valorem
A19: Basic Price | B19: =B13-B15-B14 -> 24.77876106 | D19: =D13-D15-D14 -> 24.78 | F19: =SUM(F20:F23) -> 24.77876106 | H19: =SUM(H20:H23) -> 7.522382409 | J19: HST (PST Portion) | K19: 0.08 | L19: ad valorem
A20: Environmental Fee/Tax | B20: =$B$7*$K$12 -> 0.0893 | D20: =B20 -> 0.0893 | F20: =B20 -> 0.0893 | H20: 0 | J20: Non-Refillable Charge | K20: 0.04 | L20: ad valorem
A21: Volume Levy/Tax | B21: =IF($B$2="c",$B$5*$B$7*$K$11,$B$5*$B$7*$K$10) -> 0.285 | D21: =B21 -> 0.285 | F21: =B21 -> 0.285 | H21: 0 | J21: Cooler MRP (<4.1% alcohol by volume) | K21: =LEFT(MRP!F3,6)*1 -> 3.779 | L21: per litre
A22: LCBO Mark-up/Spirits Basic Tax | B22: =IF(B2="c",(B19-SUM(B20:B21))/(1+$K$5)*K5,IF(B2="P",(B19-SUM(B20:B21))/(1+$K$4)*$K$4,(B19-SUM(B20:B21))/(1+$K$3)*$K$3)) -> 14.22320905 | D22: =(D19-SUM(D20:D21))/(1+K9)*K9 -> 9.293811455 | F22: =B22 -> 14.22320905 | H22: =IF($B$2="C",H23*$K$9,IF(AND($B$2<>"C",$B$10="Non-Pearson"),H23*$K$7,IF(AND($B$2<>"C",$B$10="Pearson"),H23*$K$6,0))) -> 1.253730401 | J22: Cooler MRP (4.1% & <4.9% alcohol by volume) | K22: =LEFT(MRP!F4,6)*1 -> 3.834 | L22: per litre
A23: Total Landed Cost | B23: =B19-SUM(B20:B22) -> 10.18125201 | D23: =D19-SUM(D20:D22) -> 15.11188854 | F23: =SUM(F24:F25) -> 10.18125201 | H23: =SUM(H24:H25) -> 6.268652007 | J23: Cooler MRP (4.9% & <5.6% alcohol by volume) | K23: =LEFT(MRP!F5,6)*1 -> 3.935 | L23: per litre
A24: Federal Excise Tax | B24: =IF(B2="C",ROUND(B5*B7*K25,4),ROUND(B5*B6*B7*K26,4)) -> 3.9126 | D24: =B24 -> 3.9126 | F24: =D24 -> 3.9126 | J24: Cooler MRP (5.6% -7% litres of absolute alcohol) | K24: =LEFT(MRP!F6,7)*1 -> 73.065 | L24: per litre
A25: Supplier Quote | B25: =B23-B24 -> 6.268652007 | D25: =D23-D24 -> 11.19928854 | F25: =B25 -> 6.268652007 | H25: =B25 -> 6.268652007 | J25: Cooler Excise | K25: 0.33 | L25: per litre
J26: Excise | K26: 13.042 | L26: per LAA
A27: Revenue Distribution $1 | B27: LCBO | D27: DRS | F27: Direct Delivery to Licensee | H27: Direct Delivery to Duty Free
A28: Distillery2 | B28: =B25 -> 6.268652007 | D28: =D25 -> 11.19928854 | F28: =F25+F19*$K$15 -> 11.22440422 | H28: =H25 -> 6.268652007
A29: Provincial3 | B29: =$K$19*B19+B20+B21+B22 -> 16.57980994 | D29: =K19*D19+D20+D21+$D$22 -> 11.65051146 | F29: =$K$19*F16+F20+F21+F22-F18-F19*K15 -> 8.947951532 | H29: =H22 -> 1.253730401
A30: Federal3 | B30: =$K$18*B19+B24 -> 5.151538053 | D30: =$K$18*D19+D24 -> 5.1516 | F30: =F16*$K$18+F24 -> 5.027644248
A31: Container Deposit | B31: =B14 -> 0.2 | D31: =D14 -> 0.2 | F31: =F14 -> 0.2 | H31: =H14 -> 0
A32: Total | B32: =SUM(B28:B31) -> 28.2 | D32: =SUM(D28:D31) -> 28.2014 | F32: =SUM(F28:F31) -> 25.4 | H32: =SUM(H28:H31) -> 7.522382409
A34: Revenue Distribution %1 | B34: LCBO | D34: DRS | F34: Direct Delivery to Licensee | H34: Direct Delivery to Duty Free
A35: Distillery2 | B35: =B28/B$32 -> 0.2222926244 | D35: =D28/D$32 -> 0.3971181766 | F35: =F28/F$32 -> 0.4419056779 | H35: =H28/H$32 -> 0.8333333333
A36: Provincial3 | B36: =B29/B$32 -> 0.5879365227 | D36: =D29/D$32 -> 0.4131181947 | F36: =F29/F$32 -> 0.3522815564 | H36: =H29/H$32 -> 0.1666666667
A37: Federal3 | B37: =B30/B$32 -> 0.1826786544 | D37: =D30/D$32 -> 0.1826717823 | F37: =F30/F$32 -> 0.1979387499 | H37: =H30/H$32 -> 0
A38: Container Deposit | B38: =B31/B$32 -> 0.007092198582 | D38: =D31/D$32 -> 0.007091846504 | F38: =F31/F$32 -> 0.007874015748 | H38: =H31/H$32 -> 0
A40: Notes:
A41: 1. % distribution may not add to 100% due to rounding.
A42: 2. For Direct Delivery, there is a rebate amount paid to the distillery, which is calculated at 20% of the basic price and is deducted from the remittance to the LCBO.
A43: 3. HST has been separated into GST(5%) and ORST (8%).
A44: 4. LCBO Mark-up, volume levy and environmental fee are not applicable to DRS sales but equivalent taxes are payable to the Ministry of Finance on DRS sales. The spirits basic tax rate is 61.5%.

Sheet Distillery (hidden)
A1: =TEXT('LCB 2413'!F2,"mmmyy") -> Jan00 | B1: =VLOOKUP('LCB 2413'!B2,Distillery!$A$3:$B$161,2,FALSE) -> 
A2: Distillery | B2: Filename
A3: 1000 Islands Distillery Inc. | B3: 1000Islands
A4: 361 Degrees Inc. | B4: 361Degrees
A5: 786 Country Squire Distillery | B5: 786Country
A6: Ace Beverage Group Inc. | B6: Ace
A7: ACEONE SPIRITS INC. | B7: AceoneSpirits
A8: Alo Food Group | B8: AloFood
A9: Aro Beverage Company | B9: AroBeverage
A10: Artist in Residence | B10: ArtistinRes
A11: Aware Beverages | B11: Aware
A12: BACARDI CANADA INC. | B12: BacardiCanada
A13: BARCHEF Project | B13: Barchef
A14: Barnstormer Brewing Co. | B14: Barnstormer
A15: Bayfield Berry Farm | B15: Bayfield
A16: Beattie's Distillery Inc. | B16: Beatties
A17: Big Rig | B17: BigRig
A18: Birdie Juice Beverages | B18: BirdieJuice
A19: BLACK FLY BEVERAGE COMPANY INC. | B19: BlackFly
A20: Black's Distillery Inc. | B20: Blacks
A21: Bondi Seltzer Ltd. | B21: BondiSeltzer
A22: Bootlegger Distillery Inc. | B22: Bootlegger
A23: Boréal Spirit Co. | B23: BorealSpirits
A24: Brock Street Distilling Company Ltd. | B24: Brock
A25: Brutus Beverages Inc | B25: Brutus
A26: CANADA DRY MOTT'S INC. | B26: CanadaDry
A27: CANADIAN PREMIUM BEVERAGES | B27: CanadianPremium
A28: CHILL INDIA Inc. | B28: ChillIndia
A29: Cicchetto Ltd. | B29: Cicchetto
A30: Clawfoot Stills | B30: Clawfoot
A31: COLLECTIVE ARTS BREWING LIMITED | B31: CollectiveArts
A32: Collingwood Distillery | B32: Collingwood
A33: Copperhead Distillery and Spirits | B33: Copperhead
A34: CORBY SPIRIT AND WINE LIMITED | B34: CorbySpirit
A35: Cowbell Brewing Co. | B35: CowbellBrewing
A36: Craft Papi Inc. | B36: CraftPapi
A37: Crosscut Distillery Ltd. | B37: Crosscut
A38: Denna Lake Spirits | B38: DennaLake
A39: DIAGEO CANADA INC. | B39: DiageoCanada
A40: Dillon's Small Batch Distillers | B40: Dillons
A41: Dixon's Distilled Spirits | B41: Dixons
A42: Do Good Spirits Inc. | B42: DoGood
A43: Dugal & Sons Distillery Co. | B43: Dugal
A44: Dunrobin Distilleries Ltd. | B44: Dunrobin
A45: Durham Distillery Ltd | B45: Durham
A46: Elements Distillery | B46: ElementsDistillery
A47: Elora Distilling Company | B47: Elora
A48: Felix Distillery | B48: FelixDistillery
A49: Fieldbird Cider | B49: Fieldbird
A50: FLYING MONKEYS CRAFT BREWERY | B50: FlyingMonkeys
A51: Forty Creek Distillery | B51: Forty
A52: Founder's Original | B52: Founders
A53: Foundry Pub Inc. O/A Copper Rose Distillery | B53: Foundry
A54: Freshwater Distillery | B54: Freshwater
A55: G&G Spirits Inc. | B55: G&GSpirits
A56: GEORGIAN BAY SPIRIT CO. | B56: GeorgianBay
A57: Giggling Ram | B57: GigglingRam
A58: Good Sunday | B58: GoodSunday
A59: Great Lakes Brewery | B59: GreatLakes
A60: Green Owl Distribution | B60: GreenOwl
A61: H2 Craft Spirits Inc. | B61: H2
A62: Heretic Spirits | B62: Heretic
A63: High Spirits Inc. | B63: High
A64: HIP Beverage Corp | B64: HIPBeverage
A65: Hiram Walker & Sons | B65: Hiram
A66: J Dass Distillery | B66: JDass
A67: J.P. WISER DISTILLERY LIMITED | B67: JPWiser
A68: Jaan Inc | B68: Jaan
A69: Joshua Beach Whiskey Ltd. | B69: JoshuaBeach
A70: Junction 56 Distillery Ltd. | B70: Junction
A71: Junction Craft Brewery | B71: JunctionCraft
A72: Karbon Brewing Corp. | B72: Karbon
A73: Kim's Winery and Distillery Inc. | B73: Kims
A74: King's Lock Craft Distillery Inc. | B74: Kings
A75: Kinsip House of Fine Spirits | B75: Kinsip
A76: Labrador Spirits Ltd. | B76: LabradorSpirits
A77: Laneway Distillers | B77: Laneway
A78: Last Straw Distillery | B78: Last
A79: LaunchPad Branz Inc. | B79: LaunchPad
A80: Legend Spirits Company | B80: LegendSpirits
A81: Levenswater Incorporated | B81: Levenswater
A82: Limited Distilling Corp. | B82: Limited
A83: Little Buddha Cocktail Company Inc. | B83: LittleBuddha
A84: Lost Craft Inc. | B84: Lost
A85: Lower Valley Beverage Company Ltd. | B85: Lower
A86: Lusty Libation | B86: LustyLibation
A87: Magnotta Distillery | B87: Magnotta
A88: Manns Distillery Ltd. | B88: Manns
A89: Maple Ridge Farm | B89: MapleRidge
A90: MAVERICK DISTILLERY LIMITED | B90: MaverickDistillery
A91: Mill Street Brewery | B91: Mill
A92: Molson Canada 2005 | B92: Molson2005
A93: Moon Spirits | B93: Moon
A94: Murphy's Law Distillery Ltd. | B94: Murphys
A95: Muskoka Brewery | B95: Muskoka
A96: MVP Brewing Company Ltd | B96: MVPBrewing
A97: NB Distillers | B97: NBDistillers
A98: NE1 Spirits Ltd. | B98: NE1
A99: New Ontario Brewing and Distilling | B99: NewOntario
A100: NIAGARA COLLEGE LEARNING ENTERPRISE CORPORATION | B100: NiagaraCollege
A101: Niagara Distillery | B101: NiagaraDistillery
A102: Niagara Falls Craft Distillers | B102: Niagara
A103: Nickel 9 Distillery Inc. | B103: Nickel
A104: North of 7 Distillery Corporation | B104: North
A105: North Spirit Distillery Inc. | B105: NorthSpirit
A106: Nude Vodka Soda | B106: NudeVodka
A107: OG Distillery | B107: OGDistillery
A108: Ogham Craft Spirits Inc. | B108: Ogham
A109: O'Kenny Craft Spirits | B109: OKenny
A110: Old Son's Distillery Inc. | B110: OldSons
A111: Organic Beverage Solutions | B111: OrganicBev
A112: Paradigm Spirits Company | B112: ParadigmSpirits
A113: Pepprell Distilling Co. | B113: Pepprell
A114: Persian Empire Distillery | B114: Persian
A115: Polonee Distillery | B115: Polonee
A116: Profile Wine Group | B116: Profile
A117: Pure Spirits | B117: PureSpirits
A118: Reid's Distillery | B118: Reids
A119: Rheault Distilleries | B119: Rheault
A120: RTD CANADA INC. | B120: RTDCanada
A121: Signal Hill Spirits Inc. | B121: SignalHill
A122: Silver Fox Distillery | B122: SilverFox
A123: Sleeman Breweries Ltd. | B123: Sleeman
A124: Solato Toronto Boutique Inc. | B124: SolatoToronto
A125: Sonic International Corp. | B125: Sonic
A126: Spirit in Niagara | B126: SpiritinNiagara
A127: Spirit of York Distillery Inc. | B127: SpiritofYork
A128: Spring Mill Distillery | B128: Spring
A129: Spy Cider House and Distillery | B129: Spy
A130: Still Waters Distillery | B130: Still
A131: Stone Distillery | B131: StoneDistillery
A132: Storyteller Beverages Inc. | B132: Storyteller
A133: Strati Spirits | B133: StratiSpirits
A134: SUMMER SELTZERS | B134: SummerSeltzers
A135: Tawse Winery Inc. | B135: Tawse
A136: TEQS LIMITED | B136: TEQS
A137: The Barrel Hunter Corporation | B137: Barrel
A138: The Crawler Beverage Company Ltd. | B138: Crawler
A139: The Dairy Distillery | B139: Dairy
A140: The White Distillery | B140: TheWhiteDistillery
A141: Tiny Distillery | B141: TinyDistillery
A142: Top Shelf Distillery | B142: Top
A143: Toronto Distillery Group Inc | B143: TorontoDistillery
A144: Tri Borea Inc. | B144: TriBorea
A145: True Theory Spirits | B145: TrueTheory
A146: Twenty Bench Brewing Company Inc. | B146: Twenty
A147: Umbrel Beverage Co. Inc. | B147: Umbrel
A148: Union Ten Distilling Company | B148: UnionTen
A149: United Craft Inc. | B149: United
A150: Vibe Hard Kombucha Inc. | B150: VibeHardKombucha
A151: Vieni Estates Inc. | B151: Vieni
A152: Vodka Friday Inc. | B152: VodkaFriday
A153: Vodz Beverages | B153: VodzBeverages
A154: WATERLOO BREWING COMPANY | B154: WaterlooBrewing
A155: Wayne Gretzky Winery and Distillery | B155: Wayne
A156: Wellington Brewery | B156: WellingtonBrewery
A157: Whitewater Brewing Company Ltd. | B157: Whitewater
A158: Willibald Farm Distillery Limited | B158: Willibald
A159: Wolfhead Distillery | B159: Wolfhead
A160: Xing Hua Cun Spirits Ltd. | B160: XingHua
A161: Yongehurst Distillery Company | B161: Yongehurst

Sheet MRP
A1: Minimum Retail Price for Class A & Class B Spirits | E1: Baseline Rates for Low Alcohol Spirits & Coolers
A2: Container size (mL) | B2: Class A | C2: Class B | E2: Low Alcohol Spirits & Coolers | F2: Baseline Rates
A3: 40 | B3: 2.7 | C3: 1.75 | E3: Less than 4.1% | F3: $3.779 per litre
A4: 50 | B4: 3.4 | C4: 2 | E4: 4.1 to less than 4.9% | F4: $3.834 per litre
A5: 60 | B5: 4.25 | C5: 2.3 | E5: 4.9 to less than 5.6% | F5: $3.935 per litre
A6: 100 | B6: 4.7 | C6: 2.85 | E6: 5.6% up to and including 7% | F6: $73.065 per litre of absolute alcohol as defined in Division 2 of the Food and Drug Regulations
A7: 120 | B7: 5.5 | C7: 3.8
A8: 150 | B8: 6.9 | C8: 4.65 | E8: Notes:
A9: 180 | B9: 8.2 | C9: 5.35 | E9: The minimum retail price for spirits (5.6% or more) and coolers (5.6% up to and including 7%)
A10: 200 | B10: 9.1 | C10: 5.9 | E10: is the baseline rate per litre, plus container deposit, plus the environmental levy ($0.0893)
A11: 250 | B11: 10.8 | C11: 7 | E11: per non-refillable container, plus an amount equal to the HST (13%) and 4% of the
A12: 280 | B12: 12.2 | C12: 7.7 | E12: of the environmental levy.
A13: 300 | B13: 13 | C13: 8.35
A14: 350 | B14: 15.1 | C14: 9.65
A15: 360 | B15: 15.5 | C15: 10.05
A16: 375 | B16: 16.1 | C16: 10.25
A17: 400 | B17: 17.15 | C17: 10.85
A18: 500 | B18: 19.5 | C18: 13.2
A19: 600 | B19: 23.3 | C19: 15.75
A20: 650 | B20: 25.05 | C20: 17.15
A21: 660 | B21: 25.85 | C21: 17.65
A22: 700 | B22: 27.15 | C22: 18.35
A23: 720 | B23: 27.8 | C23: 18.75
A24: 730 | B24: 28.2 | C24: 19.3
A25: 750 | B25: 28.75 | C25: 19.65
A26: 800 | B26: 30.65 | C26: 20.8
A27: 1000 | B27: 38.1 | C27: 26.1
A28: 1050 | B28: 39.85 | C28: 27.45
A29: 1125 | B29: 42.7 | C29: 29.3
A30: 1130 | B30: 42.95 | C30: 29.55
A31: 1140 | B31: 43.25 | C31: 29.75
A32: 1200 | B32: 45.55 | C32: 31.2
A33: 1280 | B33: 48.55 | C33: 33.3
A34: 1400 | B34: 53.1 | C34: 36.35
A35: 1500 | B35: 56.5 | C35: 38.65
A36: 1750 | B36: 64.6 | C36: 44.8
A37: 2000 | B37: 73.85 | C37: 51.1
A38: 2600 | B38: 95.9 | C38: 66.35
A39: 3000 | B39: 110.8 | C39: 76.6
A40: 3790 | B40: 139.6 | C40: 96.5
A41: 3850 | B41: 141.9 | C41: 98.1
A42: 4000 | B42: 147 | C42: 101.6
A43: 4500 | B43: 165.65 | C43: 114.45
A45: Notes:
A46: Minimum retail prices (MRP) and baseline rates are effective March 1, 2022.
A47: Minimum retail prices are inclusive of container deposit.
